Workbook

Sheet Niveles
B2: DECLARACION JURADA SUSTENTO DEL COSTO DE EJECUCION DE GASTO DEL MES DE AGOSTO - 2021
B3: UND. EJEC. : 005 INSTITUTO NACIONAL DE SALUD MENTAL "HONORIO DELGADO - HIDEYO NOGUCHI"
B4: CATEGORIA Y NIVEL | C4: PEA | D4: REMUNERACION NOMBRADO | E4: PEA | F4: REMUNERACION CONTRATADO | G4: PEA | H4: GUARDIA HOSPITALARIA | I4: COMPENS. ECONOMICAS | J4: INCENTIVO UNICO CAFAE | K4: TOTAL GENERAL | M4: CATEGORIA Y NIVEL | N4: PEA | O4: PENSION
B5: 01, CARRERA ADMINISTRATIVA | M5: 01, CARRERA ADMINISTRATIVA
B6: FUNC.Y DIRECTIVOS | C6: =SUM(C7:C9) -> 17 | D6: 21930.34 | E6: 0 | F6: 0 | G6: 0 | H6: 0 | I6: 0 | J6: 68314.72 | K6: 90245.06 | M6: FUNC.Y DIRECTIVOS | N6: =SUM(N7:N8) -> 4 | O6: =SUM(O7:O8) -> 5808.42
B7: F-4 | C7: 6 | D7: 8526.5 | J7: 28535.85 | K7: =SUM(D7,F7,H7,I7,J7) -> 37062.35 | M7: F-2 | N7: 1 | O7: 1349.88
B8: F-3 | C8: 9 | D8: 10439.37 | J8: 33364.53 | K8: 43803.9 | M8: F-1 | N8: 3 | O8: 4458.54
B9: F-1 | C9: 2 | D9: 2964.47 | J9: 6414.34 | K9: 9378.81 | M9: PROFESIONALES | N9: =SUM(N10:N12) -> 2 | O9: =SUM(O10:O12) -> 2173.22
B10: PROFESIONALES | C10: =SUM(C11:C14) -> 20 | D10: 21484.86 | E10: 1 | F10: 905.72 | G10: 0 | H10: 0 | I10: 0 | J10: 50423.4 | K10: 72813.98 | M10: SPB | N10: 1 | O10: 1253.57
B11: SPC | C11: 1 | D11: 1450.55 | J11: 3707.17 | K11: 5157.72 | M11: SPD | N11: 1 | O11: 919.65
B12: SPD | C12: 8 | D12: 9821.3 | J12: =21949.84-1312.48 -> 20637.36 | K12: 30458.66 | L12: 6554.86 | M12: SPE
B13: SPE | C13: 2 | D13: 1861.02 | J13: 2734.34 | K13: 4595.36 | M13: TECNICOS | N13: =SUM(N14:N16) -> 32 | O13: =SUM(O14:O16) -> 32375.39
B14: SPF | C14: 9 | D14: 8351.99 | E14: 1 | F14: 905.72 | J14: 23344.53 | K14: 32602.24 | M14: STA | N14: 28 | O14: 27937.76
B15: TECNICOS | C15: =SUM(C16:C21) -> 76 | D15: 63439.81 | E15: 7 | F15: 5960.4 | G15: 0 | H15: 0 | I15: 0 | J15: 130637.75 | K15: 200037.96 | M15: STB | N15: 4 | O15: 4437.63
B16: STA | C16: 14 | D16: 13829.21 | J16: 28340.38 | K16: 42169.59 | M16: STC
B17: STB | C17: 33 | D17: 29853.53 | J17: 46956.61 | K17: 76810.14 | M17: SUB -TOTAL ADM (01) | N17: =SUM(N6,N9,N13) -> 38 | O17: =+O6+O9+O13 -> 40357.03
B18: STC | C18: 8 | D18: 7200.1 | J18: 18797.36 | K18: 25997.46 | M18: PROFESIONALES DE LA SALUD
B19: STD | C19: 15 | D19: 10849.97 | E19: 3 | F19: 2565 | J19: =25480.68-820.3 -> 24660.38 | K19: 38075.35 | M19: MEDICOS | N19: =SUM(N21:N23) -> 7 | O19: =SUM(O21:O23) -> 15495.29
B20: STE | C20: 1 | D20: 854 | J20: 1367.17 | K20: 2221.17
B21: STF | C21: 5 | D21: 853 | E21: 4 | F21: 3395.4 | J21: =13723.03-3207.18 -> 10515.85 | K21: 14764.25 | M21: N-5 | N21: 3 | O21: 6195.77
B22: AUXILIARES | C22: =SUM(C23:C24) -> 10 | D22: 8443.68 | E22: 0 | F22: 0 | G22: 0 | H22: 0 | I22: 0 | J22: 13671.7 | K22: 22115.38 | M22: N-4 | N22: 1 | O22: 2128.37
B23: SAB. | C23: 3 | D23: 2485.83 | J23: 4101.51 | K23: 6587.34 | M23: N-3 | N23: 3 | O23: 7171.15
B24: SAD | C24: 7 | D24: 5957.85 | G24: . | J24: 9570.19 | K24: 15528.04 | M24: ENFERMERAS | N24: =SUM(N25:N28) -> 6 | O24: =SUM(O25:O28) -> 5442.25
B25: SUB -TOTAL ADM (01) | C25: =C6+C10+C15+C22 -> 123 | D25: =+D6+D10+D15+D22 -> 115298.69 | E25: =+E6+E10+E15+E22 -> 8 | F25: =+F6+F10+F15+F22 -> 6866.12 | G25: =SUM(G6,G10,G15,G22) -> 0 | H25: =+H6+H10+H15+H22 -> 0 | I25: =+I6+I10+I15+I22 -> 0 | J25: =+J6+J10+J15+J22 -> 263047.57 | K25: =+K6+K10+K15+K22 -> 385212.38 | M25: 14 | N25: 4 | O25: 3299.96
B26: PERSONAL CON LABORES ASISTENCIALES | M26: 13
B27: PROFESIONALES | C27: =SUM(C28:C29) -> 2 | D27: 20482.07 | E27: 0 | F27: 0 | G27: 0 | H27: 0 | I27: 0 | J27: 0 | K27: 20482.07 | M27: 12 | N27: 2 | O27: 2142.29
B28: F4 | C28: 2 | D28: 20482.07 | K28: =SUM(D28,F28,H28,I28,J28) -> 20482.07 | M28: 11
B29: SPD | K29: 0 | M29: TECNOLOGOS MEDICOS | N29: =SUM(N30:N31) -> 2 | O29: =SUM(O30:O31) -> 2032.84
B30: TECNICOS | C30: =SUM(C31:C36) -> 178 | D30: =SUM(D31:D36) -> 371358.75 | E30: 15 | F30: 35156 | G30: 110 | H30: 58038.02 | I30: 32774.58 | J30: 0 | K30: 497327.35 | M30: V | N30: 1 | O30: 1063.2
B31: STA | C31: 9 | D31: 17693.66 | G31: 3 | H31: 1702.38 | I31: 1294.58 | K31: 20690.62 | M31: IV | N31: 1 | O31: 969.64
B32: STB | C32: 81 | D32: 172297.72 | G32: 36 | H32: 19340.77 | I32: 13848 | K32: 205486.49 | M32: PSICOLOGOS | N32: =SUM(N33:N36) -> 2 | O32: =SUM(O33:O36) -> 2162.37
B33: STC | C33: 43 | D33: 89338.57 | G33: 24 | H33: 12915.53 | I33: 7094 | K33: 109348.1 | M33: VII | N33: 1 | O33: 1270.55
B34: STD | C34: 11 | D34: 23001 | G34: 5 | H34: 2338.55 | I34: 1738 | K34: 27077.55 | M34: VI
B35: STE | C35: 6 | D35: 12468 | G35: 2 | H35: 1019.65 | I35: 1098 | K35: 14585.65 | M35: V | N35: 1 | O35: 891.82
B36: STF | C36: 28 | D36: 56559.8 | E36: 15 | F36: 35156 | G36: 40 | H36: 20721.14 | I36: =5024+2678 -> 7702 | K36: 120138.94 | M36: IV
B37: AUXILIAR | C37: =SUM(C38:C40) -> 10 | D37: =SUM(D38:D40) -> 20698 | E37: =SUM(E38:E40) -> 0 | F37: 0 | G37: =SUM(G38:G40) -> 8 | H37: 3739.8 | I37: 1580 | J37: 0 | K37: 26017.8 | M37: OTROS PROF. DE LA SALUD | N37: =SUM(N38:N40) -> 4 | O37: =SUM(O38:O40) -> 4809.4
B38: SAB. | C38: 5 | D38: 10385 | G38: 4 | H38: 1943.76 | I38: 790 | K38: 13118.76 | M38: VII | N38: 3 | O38: 3721.44
B39: SAC | C39: 1 | D39: 2068 | G39: 1 | H39: 412.26 | I39: 158 | K39: 2638.26 | M39: V | N39: 1 | O39: 1087.96
B40: SAD | C40: 4 | D40: 8245 | G40: 3 | H40: 1383.78 | I40: 632 | K40: 10260.78
B41: SUB TOTAL | C41: =SUM(C27+C30+C37) -> 190 | D41: =D27+D30+D37 -> 412538.82 | E41: =SUM(E27+E30+E37) -> 15 | F41: =F27+F30+F37 -> 35156 | G41: 118 | H41: 61777.82 | I41: 34354.58 | J41: 0 | K41: 543827.22 | M41: SUB TOTAL (2) | N41: =SUM(N19,N24,N29,N32,N37) -> 21 | O41: =O19+O24+O29+O32+O37 -> 29942.15
B42: MEDICOS | C42: =SUM(C43:C46) -> 36 | D42: 232938 | E42: 12 | F42: 68141.75 | G42: 5 | H42: 6845.52 | I42: 48006.45 | J42: 0 | K42: 355931.72 | M42: SUB TOTAL PUP (1+2) | N42: =SUM(N17+N41) -> 59 | O42: =O17+O41 -> 70299.18
B43: N-5 | C43: 14 | D43: 101724 | I43: 12300 | K43: =SUM(D43,F43,H43,I43,J43) -> 114024 | M43: NO RENOVABLES | N43: 4 | O43: 1884.83
B44: N-4 | C44: 3 | D44: 20478 | I44: 2600 | K44: 23078 | M44: 2.2.11.21
B45: N-3 | C45: 7 | D45: 44352 | G45: 1 | H45: 1569.26 | I45: 6650 | K45: 52571.26 | M45: 2.2.23.42
B46: N-1 | C46: 12 | D46: 66384 | E46: 12 | F46: 68141.75 | G46: 4 | H46: 5276.26 | I46: =14800+11656.45 -> 26456.45 | K46: 166258.46 | M46: TOTAL GENERAL | N46: =SUM(N42,N43) -> 63 | O46: =SUM(O42+O43+O44,O45,) -> 72184.01
B47: OTROS PROF. DE LA SALUD | C47: =SUM(C48:C52) -> 17 | D47: 67055 | E47: 2 | F47: 6688 | G47: 7 | H47: 7063.85 | I47: 300 | J47: 0 | K47: =SUM(K48:K52) -> 81106.85 | R47: SIAF
B48: VIII | C48: 7 | D48: 31297 | G48: 1 | H48: 1233.86 | I48: 300 | K48: 32830.86 | R48: 2.2.11.11 | S48: 72184.01
B49: VII | C49: 1 | D49: 4158 | K49: 4158
B50: VI | C50: 1 | D50: =3409+491 -> 3900 | K50: 3900
B51: V | C51: 3 | D51: 10980 | G51: 1 | H51: 1141.32 | K51: 12121.32
B52: IV | C52: 5 | D52: 16720 | E52: 2 | F52: 6688 | G52: 5 | H52: 4688.67 | K52: 28096.67
B53: OBSTETRIZ | C53: =+C54 -> 3 | D53: =SUM(D54) -> 10032 | E53: 0 | F53: =SUM(F54) -> 0 | H53: =SUM(H54) -> 0 | I53: =SUM(I54) -> 0 | J53: =SUM(J54) -> 0 | K53: =SUM(K54:K54) -> 10032
B54: I | C54: 3 | D54: 10032 | K54: 10032
B55: ENFERMERAS | C55: =SUM(C56:C59) -> 67 | D55: 259895.4 | E55: 3 | F55: 3344 | G55: 28 | H55: 36720.82 | I55: 22950 | J55: 0 | K55: 322910.22
B56: 14 | C56: 31 | D56: 138601 | G56: 4 | H56: 5667.37 | I56: 8550 | K56: 152818.37
B57: 12 | C57: 1 | D57: 3900 | I57: 0 | K57: 3900
B58: 11 | C58: 8 | D58: 29280 | G58: 5 | H58: 6123.45 | I58: 4050 | K58: 39453.45
B59: 10 | C59: 27 | D59: 88114.4 | E59: 3 | F59: 3344 | G59: 19 | H59: 24930 | I59: =9900+450 -> 10350 | K59: 126738.4
B60: TECNOLOGOS MEDICOS | C60: =SUM(C61:C63) -> 9 | D60: =SUM(D61:D63) -> 38541 | E60: 0 | F60: =SUM(F61:F63) -> 3344 | G60: 0 | H60: 0 | I60: 0 | J60: 0 | K60: 41885
B61: VIII | C61: 7 | D61: 31297 | K61: 31297
B62: VI | C62: 1 | D62: 3900 | K62: 3900
B63: IV | C63: 1 | D63: 3344 | F63: 3344 | K63: 6688
B64: PSICOLOGOS | C64: =SUM(C65:C68) -> 30 | D64: 110585 | E64: 2 | F64: 6688 | G64: 2 | H64: 3701.58 | I64: 1350 | J64: 0 | K64: 122324.58
B65: VIII | C65: 7 | D65: 31297 | K65: 31297
B66: VI | C66: 2 | D66: 7800 | G66: 1 | H66: 1295.55 | K66: 9095.55
B67: V | C67: 4 | D67: 14640 | K67: 14640
B68: IV | C68: 17 | D68: 56848 | E68: 2 | F68: 6688 | G68: 1 | H68: 2406.03 | I68: 1350 | K68: 67292.03
B69: SUB TOTAL | C69: =+C42+C47+C53+C55+C60+C64 -> 162 | D69: =D42+D47+D53+D55+D60+D64 -> 719046.4 | E69: =+E42+E47+E53+E55+E60+E64 -> 19 | F69: =F42+F47+F53+F55+F60+F64 -> 88205.75 | G69: =+G42+G47+G53+G55+G60+G64 -> 42 | H69: =H42+H47+H53+H55+H60+H64 -> 54331.77 | I69: =I42+I47+I53+I55+I60+I64 -> 72606.45 | J69: =J42+J47+J53+J55+J60+J64 -> 0 | K69: =K42+K47+K53+K55+K60+K64 -> 934190.37
B70: SUB TOTAL ASISTENCIAL (2) | C70: =+C69+C41 -> 352 | D70: =+D41+D69 -> 1131585.22 | E70: =+E69+E41 -> 34 | F70: =+F41+F69 -> 123361.75 | G70: 160 | H70: 116109.59 | I70: 106961.03 | J70: 0 | K70: 1478017.59
B71: SUB TOTAL PUP NORMAL (1+2) | C71: =+C25+C70 -> 475 | D71: 1246883.91 | E71: 42 | F71: 130227.87 | G71: 160 | H71: 116109.59 | I71: 106961.03 | J71: 263047.57 | K71: 1863229.97
B72: MEDICOS RESIDENTES | G72: 13 | H72: 4334.71 | K72: =SUM(D72,F72,H72,I72,J72) -> 4334.71
B73: DESTACADOS | J73: 4101.51 | K73: 4101.51
B74: 2.1.19.21 CTS | C74: 3 | D74: 61910.87 | K74: 61910.87
B75: 2.1.19.33 Comp.Vac. | C75: 2 | D75: 1465.96 | K75: 1465.96
B76: 2.1.19.32 | C76: 1 | D76: 190.75 | K76: 190.75
B77: SUB TOTAL ASISTENCIAL (3) | C77: =C70 -> 352 | D77: =SUM(D72:D76) -> 63567.58 | F77: =SUM(F72:F76) -> 0 | G77: 13 | H77: 4334.71 | I77: 0 | J77: 4101.51 | K77: 72003.8
B78: 21.31.15-CUOTA PATRONAL 9% | C78: 492 | D78: 83811 | K78: 83811
B79: 21.31.16-SCTR | C79: 492 | D79: 11339.21 | K79: 11339.21
B80: SUB TOTAL CONTIBUC(4) | D80: =SUM(D78:D79) -> 95150.21 | F80: =SUM(F78:F79) -> 0 | H80: =SUM(H78:H79) -> 0 | I80: =SUM(I78:I79) -> 0 | J80: =SUM(J78:J79) -> 0 | K80: =SUM(K78:K79) -> 95150.21
B81: TOTAL GENERAL | C81: =C71 -> 475 | D81: =+D71+D77+D80 -> 1405601.7 | F81: =+F71+F77+F80 -> 130227.87 | G81: =G71+G72+G73 -> 173 | H81: =+H71+H77+H80 -> 120444.3 | I81: =+I71+I77+I80 -> 106961.03 | J81: =+J71+J77+J80 -> 267149.08 | K81: =+K71+K77+K80 -> 2030383.98
B82: JVM/BVR/rcc. | J82: 30 de setiembre 2021

Sheet Activos
C1: DELARACION JURADA DE EJECUCION DE PAGO PLANILLA DE ACTIVOS - AGOSTO 2021
A2: PLIEGO : 11 MINSA
A3: UNIDAD EJECUTORA : 005-INSTITUTO NACIONAL DE SALUD MENTAL "HONORIO DELGADO-HIDEYO NOGUCHI"
A4: N° | B4: N° PLAZA | C4: APELLIDOS Y NOMBRES | D4: DNI | E4: CARGO CLASIFICADO | F4: CONDICON | G4: NIVEL | H4: REMUNERACION | I4: GUARDIA | J4: ENTREGA ECONOMICAS | K4: INCENTIVO CAFAE | L4: TOTAL
A5: 1 | B5: 010124 | C5: ABREGU CASTRO VICTOR RAUL | D5: 07126457 | E5: TECNICO/A ASISTENCIAL | F5: NOMBRADO | G5: TB | H5: 2127 | J5: 158 | K5: 0 | L5: =SUM(H5:K5) -> 2285
A6: =+A5+1 -> 2 | B6: 010125 | C6: ACOSTA SOTO LUZ DANIELA | D6: 25638803 | E6: ESP. ADMINIST. I | F6: NOMBRADO | G6: TB | H6: 880.2 | J6: 0 | K6: 1367.17 | L6: 2247.37
A7: 3 | B7: 010245 | C7: ADRIANO RAMIREZ MELANIO | D7: 42954465 | E7: TEC. EN ENFERMERIA I | F7: NOMBRADO | G7: TF | H7: 2068 | I7: 598.5 | J7: 158 | K7: 0 | L7: 2824.5
A8: 4 | B8: 010703 | C8: AGUILA MARTINEZ TEODORO | D8: 06073499 | E8: ESP. ADMINIST. I | F8: NOMBRADO | G8: PE | H8: 930.51 | J8: 0 | K8: 1367.17 | L8: 2297.68
A9: 5 | B9: 010126 | C9: AGUILAR ARROYO ROCIO | D9: 08121564 | E9: TEC. EN BIBLIOTECA I | F9: NOMBRADO | G9: TB | H9: 904.01 | J9: 0 | K9: 1367.17 | L9: 2271.18
A10: 6 | B10: 010571 | C10: ALBORNOZ MUÑOZ DELIA PATRICIA | D10: 09540432 | E10: MEDICO | F10: NOMBRADO | G10: 17 | H10: 6336 | J10: 1700 | K10: 0 | L10: 8036
A11: 7 | B11: 010005 | C11: ALBURQUERQUE JARAMILLO FLOR DE MARI | D11: 07195756 | E11: ENFERMERA/O | F11: NOMBRADO | G11: 14 | H11: 4471 | J11: 450 | K11: 0 | L11: 4921
A12: 8 | B12: 010127 | C12: ALCANTARA ABANTO AVERCIO ERMELANIO | D12: 08603261 | E12: ESP. EN LOGISTICA | F12: NOMBRADO | G12: TA | H12: 1099.43 | J12: 0 | K12: 1367.17 | L12: 2466.6
A13: 9 | B13: 010128 | C13: ALIAGA ESTRADA CARMEN FRANCISCA | D13: 06244411 | E13: ASIST. ADMINIST. I | F13: NOMBRADO | G13: TB | H13: 904.01 | J13: 0 | K13: 1367.17 | L13: 2271.18
A14: 10 | B14: 010009 | C14: ALVARADO CHAVEZ PETRONILA ELIZABETH | D14: 08504909 | E14: ENFERMERA/O | F14: NOMBRADO | G14: 14 | H14: 4471 | J14: 450 | K14: 0 | L14: 4921
A15: 11 | B15: 010129 | C15: ALVARADO RAMOS RAMON CECILIO | D15: 07162982 | E15: ASIST. ADMINIST. I | F15: NOMBRADO | G15: TB | H15: 867.49 | J15: 0 | K15: 1367.17 | L15: 2234.66
A16: 12 | B16: 010036 | C16: ALVARADO SANCHEZ FRANZ JACINTO | D16: 08446804 | E16: MEDICO I | F16: NOMBRADO | G16: 17 | H16: 6336 | J16: 900 | K16: 0 | L16: 7236
A17: 13 | B17: 010010 | C17: ALVAREZ MACHUCA MILITZA CARMEN VIRGINIA | D17: 07222524 | E17: PSICOLOGO | F17: NOMBRADO | G17: 85 | H17: 4471 | J17: 0 | K17: 0 | L17: 4471
A18: 14 | B18: 010818 | C18: ALVAREZ SIRIO CARLOS LUIS | D18: 07429392 | E18: PILOTO DE AMBULANCIA | F18: NOMBRADO | G18: TD | H18: 2091 | J18: 158 | K18: 0 | L18: 2249
A19: 15 | B19: 010130 | C19: ANDAHUA ROCA VICTOR FLORENCIO | D19: 07979600 | E19: TECNICO/A ASISTENCIAL | F19: NOMBRADO | G19: TB | H19: 2127 | I19: 551.94 | J19: 158 | K19: 0 | L19: 2836.94
A20: 16 | B20: 010131 | C20: ANDIA QUEVEDO MARIA ANTONIETA | D20: 08031286 | E20: TEC. EN ENFERMERIA II | F20: NOMBRADO | G20: TB | H20: 2127 | J20: 158 | K20: 0 | L20: 2285
A21: 17 | B21: 010865 | C21: ANTEZANA BALTAZAR ANDRES ADI | D21: 15953873 | E21: TEC. EN ENFERMERIA | F21: NOMBRADO | G21: TF | H21: 2068 | I21: 551.94 | J21: 158 | K21: 0 | L21: 2777.94
A22: 18 | B22: 010133 | C22: ANTEZANA RAMOS DE ALVAREZ LOURDES TERESA | D22: 07147037 | E22: TEC. EN ENFERMERIA II | F22: NOMBRADO | G22: TB | H22: 2127 | I22: 551.94 | J22: 158 | K22: 0 | L22: 2836.94
A23: 19 | B23: 010281 | C23: ANTUNEZ RODRIGUEZ MARILUZ ANTONIETA | D23: 08588674 | E23: PSICOLOGO I | F23: NOMBRADO | G23: 83 | H23: 3900 | J23: 0 | K23: 0 | L23: 3900
A24: 20 | B24: 010136 | C24: ARANA CHAVEZ DALILA | D24: 08654915 | E24: COORDINADOR II | F24: NOMBRADO | G24: F1 | H24: 1732.94 | J24: 0 | K24: 3207.17 | L24: 4940.11
A25: 21 | B25: 010013 | C25: ARELLANO KANASHIRO MANUEL CESAR | D25: 06599292 | E25: MEDICO I | F25: NOMBRADO | G25: 19 | H25: 7266 | J25: 1700 | K25: 0 | L25: 8966
A26: 22 | B26: 010014 | C26: AREVALO GUZMAN MERCEDES AMALIA | D26: 07730120 | E26: ENFERMERA/O | F26: NOMBRADO | G26: 14 | H26: 4471 | J26: 450 | K26: 0 | L26: 4921
A27: 23 | B27: 010137 | C27: ARIAS CORRALES PAULA ROSA | D27: 08578746 | E27: TEC. EN ENFERMERIA II | F27: NOMBRADO | G27: TB | H27: 2127 | I27: 598.5 | J27: 158 | K27: 0 | L27: 2883.5
A28: 24 | B28: 010672 | C28: ARIAS ROBLES PAOLA MARISOL | D28: 10601107 | E28: TEC. EN ENFERMERIA I | F28: NOMBRADO | G28: TC | H28: 2109 | I28: 598.5 | J28: 158 | K28: 0 | L28: 2865.5
A29: 25 | B29: 010138 | C29: ARIAS TIRADO BENITO ALBERTO | D29: 06110367 | E29: TECNICO/A ADMINIST. I | F29: NOMBRADO | G29: TC | H29: 859.71 | J29: 0 | K29: 1367.17 | L29: 2226.88
A30: 26 | B30: 010015 | C30: ARISMENDI CORTEZ VDA DE BARRAZA ROSA AMALIA | D30: 08380554 | E30: ENFERMERA/O | F30: NOMBRADO | G30: 14 | H30: 4471 | J30: 0 | K30: 0 | L30: 4471
A31: 27 | B31: 010770 | C31: ARONE MALLQUI PANFILO | D31: 10651686 | E31: ENFERMERA/O | F31: NOMBRADO | G31: 10 | H31: 3344 | I31: 1460.88 | J31: 300 | K31: 0 | L31: 5104.88
A32: 28 | B32: 010139 | C32: ARPHI HUAYHUA LUIS BELTRAN | D32: 06910682 | E32: PILOTO DE AMBULANCIA | F32: NOMBRADO | G32: TB | H32: 2127 | I32: 551.94 | J32: 158 | K32: 0 | L32: 2836.94
A33: 29 | B33: 010768 | C33: ARTEAGA AYALA EVELYN ROSSH | D33: 42347474 | E33: TEC. EN FARMACIA I | F33: NOMBRADO | G33: TF | H33: 2068 | I33: 467.71 | J33: 158 | K33: 0 | L33: 2693.71
A34: 30 | B34: 010119 | C34: ARTEAGA GAMARRA TORIBIO ALFONSO | D34: 32875120 | E34: PILOTO DE AMBULANCIA | F34: NOMBRADO | G34: TF | H34: 2068 | J34: 158 | K34: 0 | L34: 2226
A35: 31 | B35: 010433 | C35: ARTICA CONCHA CARLOS IVAN | D35: 08152877 | E35: TEC. EN NUTRICION II | F35: NOMBRADO | G35: TD | H35: 2091 | I35: 84.23 | J35: 158 | K35: 0 | L35: 2333.23
A36: 32 | B36: 010140 | C36: ASENJO DIAZ ROSENDO | D36: 10385335 | E36: TECNICO/A ASISTENCIAL | F36: NOMBRADO | G36: TD | H36: 2091 | I36: 551.94 | J36: 158 | K36: 0 | L36: 2800.94
A37: 33 | B37: 010864 | C37: ASTOCONDOR YGREDA VICTORIA CECIBEL | D37: 09902937 | E37: TEC. EN ENFERMERIA | F37: NOMBRADO | G37: TF | H37: 2068 | J37: 158 | K37: 0 | L37: 2226
A38: 34 | B38: 010141 | C38: ATALAYA CHACON IRMA MERY | D38: 08625652 | E38: ESP. ADMINIST. III | F38: NOMBRADO | G38: PD | H38: 1345.99 | J38: 0 | K38: 3207.17 | L38: 4553.16
A39: 35 | B39: 010142 | C39: ATAUCURI RODRIGUEZ DE LI MARTHA ALICIA | D39: 07147497 | E39: TEC. EN ENFERMERIA II | F39: NOMBRADO | G39: TC | H39: 2109 | I39: 598.5 | J39: 308 | K39: 0 | L39: 3015.5
A40: 36 | B40: 010016 | C40: AURAZO DIAZ NURY NOEMI | D40: 06705480 | E40: TRABAJADOR/A SOCIAL | F40: NOMBRADO | G40: 28 | H40: 4471 | J40: 0 | K40: 0 | L40: 4471
A41: 37 | B41: 010791 | C41: AVILA MARTINEZ JUDITH NOEMI | D41: 43479667 | E41: ENFERMERA/O | F41: NOMBRADO | G41: 10 | H41: 3344 | J41: 450 | K41: 0 | L41: 3794
A42: 38 | B42: 010144 | C42: AYALA QUIÑONEZ ANA MARIA | D42: 10617172 | E42: TEC. EN ENFERMERIA II | F42: NOMBRADO | G42: TC | H42: 2109 | I42: 551.94 | J42: 158 | K42: 0 | L42: 2818.94
A43: 39 | B43: 010145 | C43: BALLON TRUJILLO MIRIAM GEOVANNA | D43: 08555032 | E43: ABOGADO/A ESPECIALISTA | F43: NOMBRADO | G43: PD | H43: 1351.59 | J43: 0 | K43: 3707.17 | L43: 5058.76
A44: 40 | B44: 010146 | C44: BARBOZA NUÑEZ MARIA LUZ | D44: 07376402 | E44: TEC. EN ENFERMERIA II | F44: NOMBRADO | G44: TB | H44: 2127.89 | J44: 158 | K44: 0 | L44: 2285.89
A45: 41 | B45: 010673 | C45: BARRUETA GONZALES CARMEN ROSA | D45: 09552182 | E45: AUXILIAR ASISTENCIAL | F45: NOMBRADO | G45: AB | H45: 2077 | J45: 158 | K45: 0 | L45: 2235
A46: 42 | B46: 010428 | C46: BASTIDAS PATILLA WALTER EDWING | D46: 20081582 | E46: TEC. EN ENFERMERIA II | F46: NOMBRADO | G46: TC | H46: 2109 | I46: 551.94 | J46: 158 | K46: 0 | L46: 2818.94
A47: 43 | B47: 010148 | C47: BAUTISTA SANCHEZ FLORENCIO SABINO | D47: 08842607 | E47: ESP. EN SOPORTE INFORMATIC | F47: NOMBRADO | G47: TB | H47: 872.1 | J47: 0 | K47: 1367.17 | L47: 2239.27
A48: 44 | B48: 010738 | C48: BAUTISTA SANCHEZ JULY DORIS | D48: 10675576 | E48: TEC. EN ENFERMERIA I | F48: NOMBRADO | G48: TC | H48: 2109 | I48: 598.5 | J48: 308 | K48: 0 | L48: 3015.5
A49: 45 | B49: 010150 | C49: BENDEZU MUÑOZ YRMA | D49: 08442456 | E49: TECNICO/A ASISTENCIAL | F49: NOMBRADO | G49: TD | H49: 2091 | J49: 158 | K49: 0 | L49: 2249
A50: 46 | B50: 010379 | C50: BERNA BUSTAMANTE ANA MARIA | D50: 09969092 | E50: TEC. EN ENFERMERIA II | F50: NOMBRADO | G50: TC | H50: 2109 | I50: 598.5 | J50: 158 | K50: 0 | L50: 2865.5
A51: 47 | B51: 010152 | C51: BERNAOLA SANCHEZ MELQUIADES AURELIO | D51: 08450667 | E51: ESP. EN LOGISTICA | F51: NOMBRADO | G51: TB | H51: 877.2 | J51: 0 | K51: 1367.17 | L51: 2244.37
A52: 48 | B52: 010501 | C52: BERNUY MAYTA MARTIN ALEJANDRO | D52: 10201745 | E52: ENFERMERA/O | F52: NOMBRADO | G52: 10 | H52: 3344 | I52: 1344 | J52: 0 | K52: 0 | L52: 4688
A53: 49 | B53: 010019 | C53: BERROCAL GIRALDEZ ROLANDO URBANO | D53: 15379192 | E53: TECNOLOGO MEDICO | F53: NOMBRADO | G53: 75 | H53: 4471 | J53: 0 | K53: 0 | L53: 4471
A54: 50 | B54: 010647 | C54: BRAVO CHIPANA OLGA | D54: 07448107 | E54: TEC. EN ENFERMERIA I | F54: NOMBRADO | G54: TF | H54: 2068 | I54: 550.94 | J54: 308 | K54: 0 | L54: 2926.94
A55: 51 | B55: 010801 | C55: BRAVO SECLEN SUSETTY MILAGROS | D55: 41082967 | E55: OBSTETRA | F55: NOMBRADO | G55: 1 | H55: 3344 | J55: 0 | K55: 0 | L55: 3344
A56: 52 | B56: 010158 | C56: BULLON VELIZ LILIANA MAGDALENA | D56: 07137149 | E56: OBSTETRA | F56: NOMBRADO | G56: 1 | H56: 3344 | J56: 0 | K56: 0 | L56: 3344
A57: 53 | B57: 010645 | C57: BURGA IDROGO YEMNA YANET | D57: 41449527 | E57: TEC. EN ENFERMERIA | F57: NOMBRADO | G57: TF | H57: 2068 | J57: 158 | K57: 0 | L57: 2226
A58: 54 | B58: 010408 | C58: BUSTAMANTE HERRERA LINDOMIRA | D58: 40011787 | E58: TEC. EN FARMACIA I | F58: NOMBRADO | G58: TC | H58: 2109 | I58: 541.05 | J58: 158 | K58: 0 | L58: 2808.05
A59: 55 | B59: 010575 | C59: CABALLERO PERALTA JULY ESTHER | D59: 40042163 | E59: MEDICO | F59: NOMBRADO | G59: 15 | H59: 5532 | J59: 0 | K59: 0 | L59: 5532
A60: 56 | B60: 010025 | C60: CABALLERO TAYA ANA MARIA DEL ROCIO | D60: 08152099 | E60: QUIMICO FARMACEUTICO | F60: NOMBRADO | G60: 25 | H60: 3660 | I60: 1141.32 | J60: 0 | K60: 0 | L60: 4801.32
A61: 57 | B61: 010026 | C61: CABEZA LOPEZ HERNAN BENIGNO | D61: 07149201 | E61: ENFERMERA/O | F61: NOMBRADO | G61: 10 | H61: 3344 | I61: 1344 | J61: 450 | K61: 0 | L61: 5138
A62: 58 | B62: 010020 | C62: CABRA BRAVO MIRIAM | D62: 08555468 | E62: ENFERMERA/O | F62: NOMBRADO | G62: 14 | H62: 4471 | J62: 450 | K62: 0 | L62: 4921
A63: 59 | B63: 010790 | C63: CACERES TACO ELISA ISABEL | D63: 42028181 | E63: MEDICO | F63: NOMBRADO | G63: 15 | H63: 5532 | I63: 1348.39 | J63: 1350 | K63: 0 | L63: 8230.39
A64: 60 | B64: 010771 | C64: CADILLO SANCHEZ CARINA MARIBEL | D64: 32046348 | E64: ENFERMERA/O | F64: NOMBRADO | G64: 10 | H64: 3344 | I64: 876.5 | J64: 750 | K64: 0 | L64: 4970.5
A65: 61 | B65: 010834 | C65: CALDERON HUAMAN KARLA JACQUELINE | D65: 40212054 | E65: PSICOLOGO | F65: NOMBRADO | G65: 81 | H65: 3344 | J65: 450 | K65: 0 | L65: 3794
A66: 62 | B66: 010112 | C66: CALIZAYA DELGADO JESUS RICHARD | D66: 29549737 | E66: MEDICO I | F66: NOMBRADO | G66: 15 | H66: 5532 | J66: 1700 | K66: 0 | L66: 7232
A67: 63 | B67: 010022 | C67: CALLE GUAILUPO ANA LUISA | D67: 08721772 | E67: ENFERMERA/O | F67: NOMBRADO | G67: 14 | H67: 4471 | J67: 0 | K67: 0 | L67: 4471
A68: 64 | B68: 010162 | C68: CALLUPE LOPEZ JUANA | D68: 10517107 | E68: TEC. EN ENFERMERIA II | F68: NOMBRADO | G68: TB | H68: 2127 | J68: 158 | K68: 0 | L68: 2285
A69: 65 | B69: 010163 | C69: CALSIN QUISPE JULIA GERALDINA | D69: 07208878 | E69: ASIST. ADMINIST. I | F69: NOMBRADO | G69: TB | H69: 878.29 | J69: 0 | K69: 1367.17 | L69: =SUM(H69:K69) -> 2245.46
A70: 66 | B70: 010164 | C70: CAMACHO RAMOS CARINA YOBANI | D70: 06724954 | E70: TEC. EN ENFERMERIA II | F70: NOMBRADO | G70: TB | H70: 2127 | J70: 158 | K70: 0 | L70: 2285
A71: 67 | B71: 010165 | C71: CAMPOS LEVANO EUDOCIA FELICITA | D71: 10578571 | E71: TEC. EN ENFERMERIA II | F71: NOMBRADO | G71: TB | H71: 2127 | I71: 551.94 | J71: 308 | K71: 0 | L71: 2986.94
A72: =+A71+1 -> 68 | B72: 010166 | C72: CANELO VITANCIO VICTOR MANUEL | D72: 07232005 | E72: ESP. EN LOGISTICA | F72: NOMBRADO | G72: TB | H72: 867.49 | J72: 0 | K72: 1367.17 | L72: 2234.66
A73: 69 | B73: 010168 | C73: CAPCHA ROJAS JORGE NARCIZO | D73: 08550116 | E73: TECNICO/A ASISTENCIAL | F73: NOMBRADO | G73: TB | H73: 2127 | I73: 551.94 | J73: 158 | K73: 0 | L73: 2836.94
A74: 70 | B74: 010018 | C74: CARAZAS VERA MARIA SOLEDAD | D74: 40049897 | E74: MEDICO I | F74: NOMBRADO | G74: 15 | H74: 5532 | J74: 1700 | K74: 0 | L74: 7232
A75: 71 | B75: 010745 | C75: CARBAJAL TORRES FANNY PATRICIA | D75: 10306139 | E75: MEDICO | F75: NOMBRADO | G75: 15 | H75: 5532 | J75: 1700 | K75: 0 | L75: 7232
A76: 72 | B76: 010763 | C76: CARHUAPOMA HUAMAN NORA | D76: 27742349 | E76: TEC. EN NUTRICION I | F76: NOMBRADO | G76: TF | H76: 2068 | I76: 508.38 | J76: 158 | K76: 0 | L76: 2734.38
A77: 73 | B77: 010170 | C77: CARHUAS BALDEON CIPRIAN | D77: 06082331 | E77: TEC. EN ENFERMERIA II | F77: NOMBRADO | G77: TC | H77: 2109 | J77: 158 | K77: 0 | L77: 2267
A78: 74 | B78: 010762 | C78: CARHUAS GARCIA ELIZABETH | D78: 25799515 | E78: TEC. EN ENFERMERIA I | F78: NOMBRADO | G78: TF | H78: 2068 | I78: 551.94 | J78: 158 | K78: 0 | L78: 2777.94
A79: 75 | B79: 010171 | C79: CARO ROSALES HERNAN SAMUEL | D79: 06899223 | E79: MECANICO AUTOMOTRIZ | F79: NOMBRADO | G79: TB | H79: 883.24 | J79: 0 | K79: 1367.17 | L79: 2250.41
A80: 76 | B80: 010315 | C80: CARRANZA ZUÑIGA CARMEN OFELIA | D80: 06238275 | E80: ASIST. EJECUTIVO II | F80: NOMBRADO | G80: TA | H80: 875.25 | J80: 0 | K80: 1367.17 | L80: 2242.42
A81: 77 | B81: 010172 | C81: CARREÑO CARRERA MERCEDES PILAR MARI | D81: 07358267 | E81: ASIST. PROFESIONAL I | F81: NOMBRADO | G81: TA | H81: 875.25 | J81: 0 | K81: 3207.17 | L81: 4082.42
A82: 78 | B82: 010674 | C82: CASAS CAMPOS MILAGROS SOLEDAD | D82: 10581882 | E82: TEC. EN ENFERMERIA I | F82: NOMBRADO | G82: TC | H82: 2109 | I82: 430.04 | J82: 158 | K82: 0 | L82: 2697.04
A83: 79 | B83: 010176 | C83: CASTILLO QUISPE ELIZABETH MONICA | D83: 10072887 | E83: TEC. EN ENFERMERIA II | F83: NOMBRADO | G83: TC | H83: 2109 | I83: 598.5 | J83: 158 | K83: 0 | L83: 2865.5
A84: 80 | B84: 010177 | C84: CASTRO AREVALO KEYLA | D84: 07577454 | E84: TEC. EN ENFERMERIA II | F84: NOMBRADO | G84: TB | H84: 2127 | J84: 158 | K84: 0 | L84: 2285
A85: 81 | B85: 010412 | C85: CASTRO ROJO MARINA RAMONA | D85: 21448775 | E85: ENFERMERA/O I | F85: NOMBRADO | G85: 10 | H85: 3344 | J85: 0 | K85: 0 | L85: 3344
A86: 82 | B86: 010434 | C86: CATAÑO SANCHEZ CARLOS ALBERTO | D86: 08667143 | E86: AUXILIAR ADMINISTRATIVO | F86: NOMBRADO | G86: AD | H86: 813.05 | J86: 0 | K86: 1367.17 | L86: 2180.22
A87: 83 | B87: 010820 | C87: CAVERO TOVAR VICTOR AUGUSTO | D87: 08144920 | E87: TECNICO/A ADMINIST. I | F87: NOMBRADO | G87: TD | H87: 855 | J87: 0 | K87: 3207.17 | L87: 4062.17
A88: 84 | B88: 010179 | C88: CAYLLAHUA POCCO VISITACION MARIA | D88: 07305091 | E88: ASIST. EJECUTIVO I | F88: NOMBRADO | G88: TB | H88: 1086.51 | J88: 0 | K88: 1367.17 | L88: 2453.68
A89: 85 | B89: 010746 | C89: CAYO MEDINA CARMEN JULISSA | D89: 21555375 | E89: MEDICO | F89: NOMBRADO | G89: 15 | H89: 5532 | J89: 1700 | K89: 0 | L89: 7232
A90: 86 | B90: 010608 | C90: CERNA SANCHEZ ESTHER DEL ROSARIO | D90: 45490503 | E90: JEFE/A DE OFICINA | F90: NOMBRADO | G90: C3 | H90: 1124.3 | J90: 0 | K90: 3707.17 | L90: 4831.47
A91: 87 | B91: 010058 | C91: CERNA ZARZOSA SANTA EUGENIA | D91: 09527409 | E91: ENFERMERA/O | F91: NOMBRADO | G91: 10 | H91: 3344 | I91: 1460.88 | J91: 450 | K91: 0 | L91: 5254.88
A92: 88 | B92: 010121 | C92: CERVANTES BURGA FLOR DE MARIA | D92: 07986785 | E92: TEC. EN ENFERMERIA I | F92: NOMBRADO | G92: TB | H92: 2127 | I92: 551.94 | J92: 158 | K92: 0 | L92: 2836.94
A93: 89 | B93: 010027 | C93: CESPEDES CORONADO CARLOS HUMBERTO | D93: 08385735 | E93: MEDICO | F93: NOMBRADO | G93: 19 | H93: 7266 | J93: 900 | K93: 0 | L93: 8166
A94: 90 | B94: 010182 | C94: CEVALLOS ASENCIOS INGRID SUSAN | D94: 06685084 | E94: TEC. EN ENFERMERIA II | F94: NOMBRADO | G94: TB | H94: 2127 | J94: 158 | K94: 0 | L94: 2285
A95: 91 | B95: 010183 | C95: CHAHUA RIVERA JOSE ANTONIO | D95: 08376807 | E95: CONTADOR/A II | F95: NOMBRADO | G95: PC | H95: 1450.55 | J95: 0 | K95: 3707.17 | L95: 5157.72
A96: 92 | B96: 010184 | C96: CHAUPIS ISIDRO ORLANDO | D96: 07882151 | E96: TECNICO/A ASISTENCIAL | F96: NOMBRADO | G96: TB | H96: 2127 | I96: 551.94 | J96: 158 | K96: 0 | L96: 2836.94
A97: 93 | B97: 010185 | C97: CHAVEZ ALVARADO VDA DE NARCIZO MARIA VICTORIA | D97: 10786014 | E97: TEC. EN ENFERMERIA II | F97: NOMBRADO | G97: TC | H97: 2109 | J97: 158 | K97: 0 | L97: 2267
A98: 94 | B98: 010186 | C98: CHAVEZ HUAMAN JUAN DE DIOS | D98: 06737496 | E98: TECNICO/A ASISTENCIAL | F98: NOMBRADO | G98: TB | H98: 2127 | J98: 158 | K98: 0 | L98: 2285
A99: 95 | B99: 010249 | C99: CHAVEZ MALLQUI MIGUEL ANGEL | D99: 25759238 | E99: TECNICO/A ASISTENCIAL | F99: NOMBRADO | G99: TE | H99: 2078 | J99: 158 | K99: 0 | L99: 2236
A100: 96 | B100: 010188 | C100: CHUMPITAZI MONTEVERDE FREDDA CLAUDIA | D100: 08506103 | E100: ASIST. ADMINIST. I | F100: NOMBRADO | G100: TB | H100: 872.1 | J100: 0 | K100: 1367.17 | L100: 2239.27
A101: 97 | B101: 010189 | C101: CHUQUIMAJO BARRIENTOS DE PINO ANA MARIA | D101: 08578277 | E101: TEC. EN ENFERMERIA II | F101: NOMBRADO | G101: TB | H101: 2127 | J101: 158 | K101: 0 | L101: 2285
A102: 98 | B102: 010837 | C102: CHURA FLORES SYNTIA SUNEV | D102: 44135948 | E102: TEC. EN ENFERMERIA | F102: NOMBRADO | G102: TF | H102: 2068 | I102: 551.94 | J102: 158 | K102: 0 | L102: 2777.94
A103: 99 | B103: 010190 | C103: COBEÑAS PUICON CECILIA | D103: 09904071 | E103: TEC. EN ENFERMERIA II | F103: NOMBRADO | G103: TB | H103: 2127 | I103: 504.38 | J103: 308 | K103: 0 | L103: 2939.38
A104: 100 | B104: 010029 | C104: CONDORCHUA VILLAVERDE LUPE DORA | D104: 08258331 | E104: TRABAJADOR/A SOCIAL | F104: NOMBRADO | G104: 27 | H104: 4158 | J104: 0 | K104: 0 | L104: 4158
A105: 101 | B105: 010541 | C105: CONDORI CASAFRIA ROY VICTOR | D105: 41062335 | E105: TEC. EN ENFERMERIA I | F105: NOMBRADO | G105: TE | H105: 2078 | I105: 421.15 | J105: 308 | K105: 0 | L105: 2807.15
A106: 102 | B106: 010422 | C106: CONTRERAS HERNANDEZ ELVA JENNY | D106: 07631915 | E106: ENFERMERA/O | F106: NOMBRADO | G106: 10 | H106: 3344 | I106: 1344 | J106: 450 | K106: 0 | L106: 5138
A107: 103 | B107: 010063 | C107: CONTRERAS TINOCO ERIKA | D107: 40849396 | E107: ENFERMERA/O | F107: NOMBRADO | G107: 11 | H107: 3660 | J107: 450 | K107: 0 | L107: 4110
A108: 104 | B108: 010192 | C108: CORDOVA CUSIHUAMAN RAYDA | D108: 08555031 | E108: ASIST. ADMINIST. I | F108: NOMBRADO | G108: TB | H108: 880.2 | J108: 0 | K108: 1367.17 | L108: 2247.37
A109: 105 | B109: 010194 | C109: CORREA SOMONTES ESPERANZA ELVIRA | D109: 07126301 | E109: ASIST. EJECUTIVO I | F109: NOMBRADO | G109: TB | H109: 1082.34 | J109: 0 | K109: 1367.17 | L109: 2449.51
A110: 106 | B110: 010031 | C110: CORTEZ VASQUEZ ESMERALDA VICENTA | D110: 06923615 | E110: ENFERMERA/O | F110: NOMBRADO | G110: 14 | H110: 4471 | J110: 450 | K110: 0 | L110: 4921
A111: 107 | B111: 010195 | C111: CRESPO RAMOS RAUL | D111: 06910129 | E111: TECNICO/A ASISTENCIAL | F111: NOMBRADO | G111: TB | H111: 2127 | I111: 556.7 | J111: 158 | K111: 0 | L111: 2841.7
A112: 108 | B112: 010196 | C112: CRISTOBAL HUAMAN HERMELINDA ROSALBINA | D112: 08322414 | E112: TEC. EN ENFERMERIA II | F112: NOMBRADO | G112: TC | H112: 2109 | J112: 158 | K112: 0 | L112: 2267
A113: 109 | B113: 010065 | C113: CRUZ CAMPOS VICTOR ORLANDO | D113: 09629568 | E113: MEDICO I | F113: NOMBRADO | G113: 17 | H113: 6336 | J113: 900 | K113: 0 | L113: 7236
A114: 110 | B114: 010432 | C114: CRUZ LABAN VDA DE MEJIA MARIA EUGENIA | D114: 08549506 | E114: TEC. EN ENFERMERIA II | F114: NOMBRADO | G114: TC | H114: 738.15 | J114: 158 | K114: 0 | L114: 896.15
A115: 111 | B115: 010767 | C115: CRUZ URDANEGUI SOCORRO | D115: 06937497 | E115: TRABAJADOR/A SOCIAL | F115: NOMBRADO | G115: 24 | H115: 3344 | J115: 0 | K115: 0 | L115: 3344
A116: 112 | B116: 010143 | C116: CRUZADO DIAZ LIZARDO | D116: 18158390 | E116: MEDICO I | F116: NOMBRADO | G116: 17 | H116: 6336 | I116: 1569.26 | J116: 1350 | K116: 0 | L116: 9255.26
A117: 113 | B117: 010155 | C117: CUADROS GREY JUAN EDUARDO | D117: 08674871 | E117: TECNICO/A ASISTENCIAL | F117: NOMBRADO | G117: TD | H117: 2091 | I117: 598.5 | J117: 158 | K117: 0 | L117: 2847.5
A118: 114 | B118: 010435 | C118: CUADROS GREY ROBERTO FRANK | D118: 09606435 | E118: TECNICO/A EN MANTENIMIENTO | F118: NOMBRADO | G118: TF | H118: 853 | J118: 0 | K118: 3207.17 | L118: 4060.17
A119: 115 | B119: 010675 | C119: CUENCA PAREDES PATRICIA MAGALI | D119: 15359858 | E119: ENFERMERA/O | F119: NOMBRADO | G119: 10 | H119: 3344 | I119: 1380.78 | J119: 0 | K119: 0 | L119: 4724.78
A120: 116 | B120: 010032 | C120: CUEVA ZARAGOZA GLADYS TERESA | D120: 08606493 | E120: ENFERMERA/O I | F120: NOMBRADO | G120: 14 | H120: 4471 | J120: 450 | K120: 0 | L120: 4921
A121: 117 | B121: 010197 | C121: DA COSTA PENA BASILIO | D121: 06100907 | E121: ESP. EN LOGISTICA | F121: NOMBRADO | G121: TB | H121: 867.46 | J121: 0 | K121: 1367.17 | L121: 2234.63
A122: 118 | B122: 010418 | C122: DE LA CRUZ FLORES ILDAURA | D122: 06971862 | E122: QUIMICO FARMACEUTICO | F122: NOMBRADO | G122: 24 | H122: 3344 | J122: 0 | K122: 0 | L122: 3344
A123: 119 | B123: 010199 | C123: DE LA CRUZ MEDINA FELICITAS MAFALDA | D123: 09347349 | E123: AUXILIAR ADMINISTRATIVO | F123: NOMBRADO | G123: AD | H123: 860.73 | J123: 0 | K123: 1367.17 | L123: 2227.9
A124: 120 | B124: 010560 | C124: DE LA CRUZ TORIBIO TEODORO | D124: 06872883 | E124: TECNICO/A ASISTENCIAL | F124: NOMBRADO | G124: TE | H124: 2078 | J124: 158 | K124: 0 | L124: 2236
A125: 121 | B125: 010085 | C125: DE LA VEGA BARRETO PILAR ALICIA | D125: 08345494 | E125: TRABAJADOR/A SOCIAL | F125: NOMBRADO | G125: 25 | H125: 3660 | J125: 0 | K125: 0 | L125: 3660
A126: 122 | B126: 010819 | C126: DEL AGUILA CANALES DENNIS ANGEL | D126: 40578710 | E126: TECNICO/A ADMINIST. I | F126: NOMBRADO | G126: TD | H126: 855 | J126: 0 | K126: 3207.17 | L126: 4062.17
A127: 123 | B127: 010202 | C127: DEL CARPIO CADENAS JUAN ANTONIO | D127: 07149169 | E127: TEC. EN ENFERMERIA II | F127: NOMBRADO | G127: TB | H127: 2127 | J127: 158 | K127: 0 | L127: 2285
A128: 124 | B128: 010035 | C128: DELGADO CASTILLO DEISY MARLENE | D128: 08643471 | E128: ENFERMERA/O | F128: NOMBRADO | G128: 14 | H128: 4471 | J128: 0 | K128: 0 | L128: 4471
A129: 125 | B129: 010821 | C129: DIAZ ASTO MARA PATRICIA | D129: 40306873 | E129: TECNICO/A ADMINIST. I | F129: NOMBRADO | G129: TD | H129: 855 | J129: 0 | K129: 1367.17 | L129: 2222.17
A130: 126 | B130: 010753 | C130: DIAZ ESPINOZA LOURDES LUCIA | D130: 09030014 | E130: MEDICO I | F130: NOMBRADO | G130: 19 | H130: 7266 | J130: 0 | K130: 0 | L130: 7266
A131: 127 | B131: 010573 | C131: DIAZ HUACO MARIA DEL CARMEN | D131: 29219886 | E131: MEDICO | F131: NOMBRADO | G131: 17 | H131: 6336 | J131: 900 | K131: 0 | L131: 7236
A132: 128 | B132: 010742 | C132: DIVIZZIA ACOSTA MAGALY YANINA | D132: 10389365 | E132: PSICOLOGO | F132: NOMBRADO | G132: 81 | H132: 3344 | J132: 0 | K132: 0 | L132: 3344
A133: 129 | B133: 010023 | C133: ENRIQUEZ CACERES MANUEL IGNACIO | D133: 29533833 | E133: MEDICO I | F133: NOMBRADO | G133: 18 | H133: 6826 | J133: 900 | K133: 0 | L133: =SUM(H133:K133) -> 7726
A134: 130 | B134: 010204 | C134: ESPINOZA ESPINOZA ELEODORO | D134: 08616646 | E134: TECNICO/A ASISTENCIAL | F134: NOMBRADO | G134: TC | H134: 2109 | I134: 551.94 | J134: 158 | K134: 0 | L134: 2818.94
A135: 131 | B135: 010234 | C135: ESPINOZA PARDO MOISES | D135: 40181660 | E135: ESP. EN SOPORTE INFORMATIC | F135: NOMBRADO | G135: TD | H135: 855 | J135: 0 | K135: 1367.17 | L135: 2222.17
A136: =+A135+1 -> 132 | B136: 010205 | C136: ESPINOZA VELIZ MANUEL JESUS | D136: 06718168 | E136: AUXILIAR ADMINISTRATIVO | F136: NOMBRADO | G136: AD | H136: 813.05 | J136: 0 | K136: 1367.17 | L136: 2180.22
A137: 133 | B137: 010542 | C137: ESPINOZA ZAPATA MARIA VICTORIA | D137: 08145852 | E137: ENFERMERA/O | F137: NOMBRADO | G137: 12 | H137: 3900 | J137: 0 | K137: 0 | L137: 3900
A138: 134 | B138: 010676 | C138: ESTRADA SIPION VILMA | D138: 09989355 | E138: TEC. EN ENFERMERIA I | F138: NOMBRADO | G138: TC | H138: 2109 | I138: 551.94 | J138: 158 | K138: 0 | L138: 2818.94
A139: 135 | B139: 010206 | C139: ESTRADA ZUMAETA NADITH | D139: 08389566 | E139: TECNICO/A ADMINIST. I | F139: NOMBRADO | G139: TC | H139: 884.81 | J139: 0 | K139: 3207.17 | L139: 4091.98
A140: 136 | B140: 010593 | C140: EXEBIO ALTAMIRANO DE LEVANO MELVI LILIANA | D140: 06132719 | E140: TRABAJADOR/A SOCIAL | F140: NOMBRADO | G140: 25 | H140: 3660 | J140: 0 | K140: 0 | L140: 3660
A141: 137 | B141: 010207 | C141: FABIAN CALDAS ENRIQUE ELAN | D141: 07614702 | E141: ESP. EN COMUNIC. SOCIAL I | F141: NOMBRADO | G141: TD | H141: 855 | J141: 0 | K141: 1367.17 | L141: 2222.17
A142: 138 | B142: 010038 | C142: FALCONI VASQUEZ SYLVIA ROSA | D142: 06679492 | E142: TRABAJADOR/A SOCIAL | F142: NOMBRADO | G142: 28 | H142: 4471 | J142: 0 | K142: 0 | L142: 4471
A143: 139 | B143: 010737 | C143: FARFAN VALENTIN PEDRO | D143: 08555457 | E143: TEC. EN ENFERMERIA I | F143: NOMBRADO | G143: TC | H143: 2109 | J143: 158 | K143: 0 | L143: 2267
A144: 140 | B144: 010747 | C144: FERNANDEZ MONTALVO MERCEDES ANGELITA | D144: 80579469 | E144: ENFERMERA/O | F144: NOMBRADO | G144: 10 | H144: 3344 | J144: 450 | K144: 0 | L144: 3794
A145: 141 | B145: 010411 | C145: FERNANDEZ MORALES FATIMA GRACIELA MAGDA | D145: 08424817 | E145: TECNOLOGO MEDICO | F145: NOMBRADO | G145: 73 | H145: 3900 | J145: 0 | K145: 0 | L145: 3900
A146: 142 | B146: 010039 | C146: FERNANDEZ YGREDA REGINA NELIDA | D146: 08544654 | E146: ENFERMERA/O | F146: NOMBRADO | G146: 14 | H146: 4471 | J146: 450 | K146: 0 | L146: 4921
A147: 143 | B147: 010210 | C147: FERRO RODRIGO RODOLFO WILLINGTON | D147: 07230874 | E147: PILOTO DE AMBULANCIA | F147: NOMBRADO | G147: TB | H147: 2127 | J147: 158 | K147: 0 | L147: 2285
A148: 144 | B148: 010211 | C148: FLORES FUENTES REYNA AUGUSTA | D148: 08095095 | E148: TEC. EN ENFERMERIA II | F148: NOMBRADO | G148: TB | H148: 2127 | I148: 598.5 | J148: 308 | K148: 0 | L148: 3033.5
A149: 145 | B149: 010212 | C149: FLORIAN CHAVEZ FRANCISCA ESTHER | D149: 06158194 | E149: ASIST. EJECUTIVO I | F149: NOMBRADO | G149: TB | H149: 1082.61 | J149: 0 | K149: 1367.17 | L149: 2449.78
A150: 146 | B150: 010213 | C150: FLORINDEZ VERA MARIA LUISA | D150: 07341193 | E150: TEC. EN ENFERMERIA II | F150: NOMBRADO | G150: TB | H150: 2127 | J150: 158 | K150: 0 | L150: 2285
A151: 147 | B151: 010836 | C151: FRANCIA PACHECO MARTIN SABINO | D151: 43052579 | E151: ENFERMERA/O | F151: NOMBRADO | G151: 10 | H151: 3344 | I151: 1256.35 | J151: 450 | K151: 0 | L151: 5050.35
A152: 148 | B152: 010677 | C152: FUENTES GARCES LOURDES HELENA | D152: 06792767 | E152: AUXILIAR ASISTENCIAL | F152: NOMBRADO | G152: AB | H152: 2077 | I152: 289.25 | J152: 158 | K152: 0 | L152: 2524.25
A153: 149 | B153: 010214 | C153: FUENTES RIVERA DORIA MARIA DEL CARM | D153: 07117474 | E153: ESP. ADMINIST. I | F153: NOMBRADO | G153: TA | H153: 1076.53 | J153: 0 | K153: 3207.17 | L153: 4283.7
A154: 150 | B154: 010215 | C154: GACITUA ARIAS MARIO LEANDRO | D154: 08448104 | E154: TECNICO/A ADMINIST. I | F154: NOMBRADO | G154: TB | H154: 867.49 | J154: 0 | K154: 1367.17 | L154: 2234.66
A155: 151 | B155: 010419 | C155: GALARRETA DE LA CRUZ CARMEN ROSA | D155: 08442473 | E155: ENFERMERA/O | F155: NOMBRADO | G155: 14 | H155: 4471 | J155: 450 | K155: 0 | L155: 4921
A156: 152 | B156: 010216 | C156: GALINDO TAMBO VIRGILIO JESUS | D156: 08018024 | E156: ASIST. PROFESIONAL II | F156: NOMBRADO | G156: PF | H156: 907.46 | J156: 0 | K156: 1367.17 | L156: 2274.63
A157: 153 | B157: 010219 | C157: GAMARRA ORCCOTOMA LUCIA | D157: 07818045 | E157: TEC. EN NUTRICION II | F157: NOMBRADO | G157: TB | H157: 2127 | J157: 158 | K157: 0 | L157: 2285
A158: 154 | B158: 010543 | C158: GAMIO VASQUEZ ZOILA VICTORIA | D158: 07199651 | E158: NUTRICIONISTA | F158: NOMBRADO | G158: 28 | H158: 4471 | J158: 0 | K158: 0 | L158: 4471
A159: 155 | B159: 010563 | C159: GANTO SILVERA ARTURO JESUS | D159: 08357707 | E159: TECNICO/A ASISTENCIAL | F159: NOMBRADO | G159: TE | H159: 2078 | J159: 158 | K159: 0 | L159: 2236
A160: 156 | B160: 010222 | C160: GARAY DE LA CRUZ SEVERO FILOMENO | D160: 08498501 | E160: CONTADOR/A II | F160: NOMBRADO | G160: PF | H160: 1059.75 | J160: 0 | K160: 3207.17 | L160: 4266.92
A161: 157 | B161: 010223 | C161: GARCES TRUJILLO PEPE | D161: 08520394 | E161: ESP. EN LOGISTICA | F161: NOMBRADO | G161: TB | H161: 867.49 | J161: 0 | K161: 1367.17 | L161: 2234.66
A162: 158 | B162: 010224 | C162: GARCIA ARCE ANITA ROSARIO | D162: 07584924 | E162: ESP. EN ADM.DE REC.HUM. | F162: NOMBRADO | G162: PD | H162: 955.41 | J162: 0 | K162: 3207.17 | L162: 4162.58
A163: 159 | B163: 010225 | C163: GARCIA CORDOVA MARIA GRETA | D163: 06200017 | E163: TEC. EN ENFERMERIA II | F163: NOMBRADO | G163: TC | H163: 2109 | J163: 158 | K163: 0 | L163: 2267
A164: 160 | B164: 010226 | C164: GARCIA ESPINOZA MARIA FILOMENA | D164: 06880205 | E164: TEC. EN ENFERMERIA II | F164: NOMBRADO | G164: TC | H164: 2109 | I164: 551.94 | J164: 158 | K164: 0 | L164: 2818.94
A165: 161 | B165: 010797 | C165: GARCIA ORMEÑO EDGAR ABEL | D165: 41654558 | E165: TEC. EN ENFERMERIA I | F165: NOMBRADO | G165: TF | H165: 2068 | I165: 252.69 | J165: 308 | K165: 0 | L165: 2628.69
A166: 162 | B166: 010017 | C166: GARCIA ORMEÑO PATRICIA SARITA | D166: 21505354 | E166: ENFERMERA/O | F166: NOMBRADO | G166: 11 | H166: 3660 | I166: 1380.78 | J166: 450 | K166: 0 | L166: 5490.78
A167: 163 | B167: 010229 | C167: GARCIA VEGA VALENTINA | D167: 06985900 | E167: TEC. EN ENFERMERIA II | F167: NOMBRADO | G167: TB | H167: 2127 | I167: 598.5 | J167: 158 | K167: 0 | L167: 2883.5
A168: 164 | B168: 010040 | C168: GARCIA ZAVALETA MILAGROS DEL PILAR | D168: 07296091 | E168: ENFERMERA/O | F168: NOMBRADO | G168: 14 | H168: 4471 | I168: 1515.66 | J168: 450 | K168: 0 | L168: 6436.66
A169: 165 | B169: 010230 | C169: GAVIDIA NUÑUVERO DORIS LUCIA | D169: 06738495 | E169: ASIST. EJECUTIVO II | F169: NOMBRADO | G169: TB | H169: 1082.61 | J169: 0 | K169: 1367.17 | L169: 2449.78
A170: 166 | B170: 010231 | C170: GAVILAN VILLANUEVA MARIA CRISTINA | D170: 09038308 | E170: TEC. EN ENFERMERIA II | F170: NOMBRADO | G170: TB | H170: 2127 | J170: 158 | K170: 0 | L170: 2285
A171: 167 | B171: 010562 | C171: GOMEZ ISIDRO MARIANO | D171: 06234752 | E171: TECNICO/A EN COMUNICACIONE | F171: NOMBRADO | G171: TE | H171: 854 | J171: 0 | K171: 1367.17 | L171: 2221.17
A172: 168 | B172: 010232 | C172: GOMEZ LOPEZ LIDIA NATIVIDAD | D172: 07203881 | E172: TEC. EN ENFERMERIA II | F172: NOMBRADO | G172: TB | H172: 2127 | J172: 158 | K172: 0 | L172: 2285
A173: 169 | B173: 010622 | C173: GOMEZ LOPEZ MARIA CRISTINA | D173: 09731431 | E173: TEC. EN ENFERMERIA I | F173: NOMBRADO | G173: TC | H173: 2109 | I173: 551.94 | J173: 158 | K173: 0 | L173: 2818.94
A174: 170 | B174: 010151 | C174: GOMEZ SALAZAR ELIAS PEDRO | D174: 06160348 | E174: PILOTO DE AMBULANCIA | F174: NOMBRADO | G174: TD | H174: 2091 | J174: 158 | K174: 0 | L174: 2249
A175: 171 | B175: 010739 | C175: GONZALES CARDENAS MARTIN CHRISTIAN | D175: 40544090 | E175: TEC. EN ENFERMERIA I | F175: NOMBRADO | G175: TC | H175: 2109 | I175: 252.69 | J175: 158 | K175: 0 | L175: 2519.69
A176: 172 | B176: 010235 | C176: GONZALES MATEO JOSE FERNANDO | D176: 07176591 | E176: TECNICO/A ASISTENCIAL | F176: NOMBRADO | G176: TB | H176: 2127 | I176: 551.94 | J176: 158 | K176: 0 | L176: 2836.94
A177: 173 | B177: 010236 | C177: GONZALES MINA TERESA | D177: 08037326 | E177: ASIST. ADMINIST. I | F177: NOMBRADO | G177: TC | H177: 859.71 | J177: 0 | K177: 3207.17 | L177: 4066.88
A178: 174 | B178: 010041 | C178: GONZALES NUÑEZ BETTY LILIANA | D178: 08650043 | E178: TECNOLOGO MEDICO | F178: NOMBRADO | G178: 75 | H178: 4471 | J178: 0 | K178: 0 | L178: 4471
A179: 175 | B179: 010678 | C179: GONZALES OJEDA GUSTAVO ALFREDO | D179: 32869734 | E179: AUXILIAR ASISTENCIAL | F179: NOMBRADO | G179: AD | H179: 2059 | I179: 416.52 | J179: 158 | K179: 0 | L179: 2633.52
A180: 176 | B180: 010237 | C180: GONZALES VASQUEZ MARTIN | D180: 06057067 | E180: TEC. EN ENFERMERIA II | F180: NOMBRADO | G180: TB | H180: 2127 | J180: 158 | K180: 0 | L180: 2285
A181: 177 | B181: 010238 | C181: GONZALES YANTAS VICTOR RAUL | D181: 06215838 | E181: TECNICO/A ADMINIST. I | F181: NOMBRADO | G181: TB | H181: 895.27 | J181: 0 | K181: 1367.17 | L181: 2262.44
A182: 178 | B182: 010239 | C182: GUERRA RODRIGUEZ ANGEL SALOMON | D182: 09202831 | E182: ESP. EN LOGISTICA | F182: NOMBRADO | G182: TB | H182: 895.27 | J182: 0 | K182: 1367.17 | L182: 2262.44
A183: 179 | B183: 010240 | C183: GUEVARA CANALES LUZ MARINA | D183: 07368934 | E183: ASIST. EJECUTIVO II | F183: NOMBRADO | G183: TB | H183: 921.03 | J183: 0 | K183: 1367.17 | L183: 2288.2
A184: 180 | B184: 010845 | C184: GUEVARA PEREZ CINDY ARELIZ | D184: 44607290 | E184: ENFERMERA/O | F184: NOMBRADO | G184: 10 | H184: 3344 | J184: 450 | K184: 0 | L184: 3794
A185: 181 | B185: 010420 | C185: GUIMAS REYNA LUIS BERNARDO GUILLERMO | D185: 08771800 | E185: MEDICO I | F185: NOMBRADO | G185: 19 | H185: 7266 | J185: 900 | K185: 0 | L185: 8166
A186: 182 | B186: 010045 | C186: GUPIO MENDOZA GLORIA HAYDEE | D186: 08583139 | E186: ENFERMERA/O | F186: NOMBRADO | G186: 14 | H186: 4471 | J186: 450 | K186: 0 | L186: 4921
A187: 183 | B187: 010242 | C187: HENOSTROZA MINAYA EDMUNDO FIDENCIO | D187: 10618259 | E187: TECNICO/A ASISTENCIAL | F187: NOMBRADO | G187: TA | H187: 2145 | J187: 158 | K187: 0 | L187: 2303
A188: 184 | B188: 010355 | C188: HERNANDEZ HUAMAN RUTH FELICITA | D188: 10752832 | E188: ENFERMERA/O | F188: NOMBRADO | G188: 10 | H188: 3344 | I188: 1227.13 | J188: 450 | K188: 0 | L188: 5021.13
A189: 185 | B189: 010004 | C189: HERNANDEZ QUIROZ JIMMY | D189: 41332455 | E189: JEFE/A DE OFICINA | F189: NOMBRADO | G189: C3 | H189: 1124.3 | J189: 0 | K189: 3707.17 | L189: 4831.47
A190: 186 | B190: 010244 | C190: HERRERA HUAMAN ELISA | D190: 06048254 | E190: TEC. EN ENFERMERIA II | F190: NOMBRADO | G190: TB | H190: 2129 | I190: 551.94 | J190: 308 | K190: 0 | L190: 2988.94
A191: 187 | B191: 010847 | C191: HERRERA LOPEZ VANESSA EVELYN | D191: 41555474 | E191: MEDICO | F191: NOMBRADO | G191: 15 | H191: 5532 | J191: 900 | K191: 0 | L191: 6432
A192: 188 | B192: 010246 | C192: HUAMAN AURIS ABEL MARINO | D192: 09199043 | E192: ESP. ADMINIST. I | F192: NOMBRADO | G192: PF | H192: 1376.46 | J192: 0 | K192: 1367.17 | L192: 2743.63
A193: 189 | B193: 010048 | C193: HUAMAN PINEDA JULIO RAUL | D193: 21447640 | E193: MEDICO | F193: NOMBRADO | G193: 19 | H193: 7266 | J193: 900 | K193: 0 | L193: 8166
A194: 190 | B194: 010049 | C194: HUANCA ALARCON LUDIVINA | D194: 07079682 | E194: TRABAJADOR/A SOCIAL | F194: NOMBRADO | G194: 28 | H194: 4471 | J194: 0 | K194: 0 | L194: 4471
A195: 191 | B195: 010600 | C195: HUARACHI COAQUIRA LUIS FERGUSON | D195: 47531274 | E195: JEFE/A DE OFICINA | F195: NOMBRADO | G195: C3 | H195: 1124.3 | J195: 0 | K195: 3707.17 | L195: 4831.47
A196: 192 | B196: 010247 | C196: HUAYTA FALCON FANNY LOURDES | D196: 07564369 | E196: TRABAJADOR/A SOCIAL | F196: NOMBRADO | G196: 26 | H196: 3900 | J196: 0 | K196: 0 | L196: 3900
A197: 193 | B197: 010248 | C197: HURTADO RODRIGUEZ FELIX TOMAS | D197: 06743190 | E197: TECNICO/A ASISTENCIAL | F197: NOMBRADO | G197: TF | H197: 2068 | I197: 598.5 | J197: 158 | K197: 0 | L197: =SUM(H197:K197) -> 2824.5
A198: 194 | B198: 010844 | C198: INFANTE MOZA CARLOS | D198: 42054962 | E198: PSICOLOGO | F198: NOMBRADO | G198: 81 | H198: 3344 | J198: 450 | K198: 0 | L198: 3794
A199: 195 | B199: 010318 | C199: IZQUIERDO PACHARI PATRICIA PAOLA | D199: 45325605 | E199: TEC. EN BIBLIOTECA I | F199: NOMBRADO | G199: TD | H199: 855 | J199: 0 | K199: 1367.17 | L199: 2222.17
A200: =+A199+1 -> 196 | B200: 010051 | C200: JARAMILLO FALCON ONESIMO | D200: 22420822 | E200: ENFERMERA/O | F200: NOMBRADO | G200: 14 | H200: 4471 | J200: 450 | K200: 0 | L200: 4921
... 385 more rows

Sheet CAS
A2: DECLARACION JURADA DE EJECUCION DE PAGO -CONTRATO ADMINISTRATIVO SERVICIOS - CAS AGOSTO 2021
A3: PLIEGO : 11 MINSA
A4: UNIDAD EJECUTORA : 005-INSTITUTO NACIONAL DE SALUD MENTAL"HONORIO DELGADO-HIDEYO NOGUCHI"
A6: Nº | B6: Nº PLAZA | C6: APELLIDOS Y NOMBRES | D6: DNI | E6: ACTIVIDAD | F6: FUENTE FINANCIAMIENTO | G6: FECHA DE INGRESO | H6: INGRESO | I6: CUOTA PATRONAL
A7: 1 | B7: 000222 | C7: ACOSTA TRUJILLO CARLOS GABRIEL | D7: 46016141 | E7: TECNICO EN ENFERMERIA | F7: R.O.O.C. | G7: 2021-05-13 | H7: 1700 | I7: 153
A8: =A7+1 -> 2 | B8: 000003 | C8: ALBARRACIN TORRES CHRISTIAN FERNANDO | D8: 40355947 | E8: OPERADOR DE MAQUINA INDUSTRIAL | F8: R.O. | G8: 2018-12-31 | H8: 1500 | I8: 135
A9: =A8+1 -> 3 | B9: 000027 | C9: ALBINAGORTA ARIZA PAOLA | D9: 41288399 | E9: MEDICO PSIQUIATRA | F9: R.O. | G9: 2018-01-01 | H9: 9500 | I9: 217.8
A10: 4 | B10: 000231 | C10: ALIAGA TINOCO STEPHANIE | D10: 43742528 | E10: MEDICO | F10: R.O. | G10: 2020-10-01 | H10: 6500 | I10: 217.8
A11: 5 | B11: 000021 | C11: ALVARO SAAVEDRA KARI MARCIA | D11: 46542197 | E11: PSICOLOGO(A) | F11: R.O. | G11: 2017-09-01 | H11: 5100 | I11: 217.8
A12: 6 | B12: 000067 | C12: ANGULO JUNCO RAUL SANTOS | D12: 09830313 | E12: MEDICO | F12: R.O. | G12: 2020-10-01 | H12: 6500 | I12: 217.8
A13: 7 | B13: 000066 | C13: ARENAS BUSTINZA MARKO CHRIS | D13: 40276111 | E13: PSICOLOGO(A) | F13: R.O. | G13: 2018-12-31 | H13: 5100 | I13: 217.8
A14: 8 | B14: 000139 | C14: AREVALO ASTUDILLO IVAN ANGEL | D14: 09619983 | E14: SOPORTE TECNICO EN INFORMATICA | F14: R.O. | G14: 2015-10-01 | H14: 6700 | I14: 217.8
A15: 9 | B15: 000153 | C15: ASENCIOS BAZAN ROSANA FLORMIRA | D15: 72392500 | E15: TECNICO EN NUTRICION | F15: R.O. | G15: 2015-04-06 | H15: 3000 | I15: 135
A16: 10 | B16: 000072 | C16: ASTOCONDOR BETETA LORENA ARACELI | D16: 47547523 | E16: TECNICO EN ENFERMERIA | F16: R.O.O.C. | G16: 2020-04-01 | H16: 1700 | I16: 153
A17: 11 | B17: 000178 | C17: AURAZO CASTAÑEDA MARIA LUISA | D17: 72569470 | E17: TECNICO EN ENFERMERIA | F17: R.O. | G17: 2015-08-12 | H17: 3200 | I17: 153
A18: 12 | B18: 000157 | C18: BAÑEZ PALACIOS IRINA MARUJA | D18: 46451237 | E18: TECNICO EN ENFERMERIA | F18: R.O.O.C. | G18: 2020-04-01 | H18: 1700 | I18: 153
A19: 13 | B19: 000229 | C19: BARRANTES MORALES ANGELITH ROCIO | D19: 46740571 | E19: MEDICO | F19: R.O. | G19: 2020-06-01 | H19: 6500 | I19: 217.8
A20: 14 | B20: 000158 | C20: BARRIENTOS DEL PINO INGRID MARLENE | D20: 71428210 | E20: TECNICO EN FARMACIA | F20: R.O.O.C. | G20: 2020-04-01 | H20: 1700 | I20: 153
A21: 15 | B21: 000234 | C21: BERNALES APOLINARIO YRMA | D21: 43435912 | E21: QUIMICO FARMACEUTICO | F21: R.O.O.C. | G21: 2020-07-01 | H21: 2700 | I21: 217.8
A22: 16 | B22: 000010 | C22: CABANILLAS SUAREZ LENIN | D22: 43157360 | E22: TECNICO EN FARMACIA | F22: R.O. | G22: 2018-12-31 | H22: 3200 | I22: 153
A23: 17 | B23: 000040 | C23: CALDAS VEGA MEIDE JAIDE | D23: 41368033 | E23: TECNICO EN ENFERMERIA | F23: R.O. | G23: 2018-12-31 | H23: 3200 | I23: 153
A24: 18 | B24: 000031 | C24: CAMPOS GASTELU MARIA ESTELA | D24: 70440577 | E24: ENFERMERA(O) | F24: R.O. | G24: 2018-08-16 | H24: 5100 | I24: 217.8
A25: 19 | B25: 000063 | C25: CANCHIS CARUAJULCA JOSE ORLANDO | D25: 43729310 | E25: PSICOLOGO(A) | F25: R.O. | G25: 2018-12-31 | H25: 5100 | I25: 217.8
A26: 20 | B26: 000170 | C26: CARBAJAL MONTESINOS SARA | D26: 42874441 | E26: MEDICO PSIQUIATRA | F26: R.O. | G26: 2019-01-01 | H26: 9500 | I26: 217.8
A27: 21 | B27: 000015 | C27: CARHUATANTA UGAZ JHONNY | D27: 16789846 | E27: TECNICO EN NUTRICION | F27: R.O. | G27: 2017-12-20 | H27: 3000 | I27: 135
A28: 22 | B28: 000197 | C28: CARRANZA PERALTA JOSE ELIAS | D28: 45795237 | E28: TECNICO EN ENFERMERIA | F28: R.O.O.C. | G28: 2020-04-01 | H28: 1700 | I28: 153
A29: 23 | B29: 000203 | C29: CASTILLO MARTELL WALTER HUMBERTO | D29: 17907760 | E29: DIRECTOR ADJUNTO | F29: R.O. | G29: 2021-06-01 | H29: 14600 | I29: 217.8
A30: 24 | B30: 000030 | C30: CHAVEZ SALDAÑA SHEYLA JOANA | D30: 46595343 | E30: TECNICO EN ENFERMERIA | F30: R.O. | G30: 2015-01-23 | H30: 3200 | I30: 153
A31: 25 | B31: 000044 | C31: CLAPES VARGAS CARMEN DEL ROSARIO | D31: 46458231 | E31: ENFERMERA(O) | F31: R.O. | G31: 2017-12-29 | H31: 5100 | I31: 217.8
A32: 26 | B32: 000177 | C32: CORDOVA COLUGNA CARLA FABIOLA | D32: 09934528 | E32: MEDICO PSIQUIATRA | F32: R.O. | G32: 2015-08-03 | H32: 7080 | I32: 0
A33: 27 | B33: 000232 | C33: CUBAS SEGURA GLADYS MARIA | D33: 08535216 | E33: QUIMICO FARMACEUTICO | F33: R.O. | G33: 2021-01-01 | H33: 2700 | I33: 217.8
A34: 28 | B34: 000113 | C34: DAMIAN HUAYNALAYA VANESSA REYDA | D34: 43102031 | E34: ENFERMERA(O) | F34: R.O. | G34: 2015-03-26 | H34: 5100 | I34: 217.8
A35: 29 | B35: 000004 | C35: DEL CARPIO REYMER VICTOR MANUEL | D35: 44373790 | E35: MEDICO PSIQUIATRA | F35: R.O. | G35: 2018-12-31 | H35: 9500 | I35: 217.8
A36: 30 | B36: 000033 | C36: DUQUE QUINTANA MABEL | D36: 00257304 | E36: PSICOLOGO(A) | F36: R.O. | G36: 2018-12-31 | H36: 5100 | I36: 217.8
A37: 31 | B37: 000185 | C37: DURAN MAMANI ELIZABETH JACKELINE | D37: 76731950 | E37: TECNICO EN LABORATORIO | F37: R.O. | G37: 2021-05-17 | H37: 1700 | I37: 153
A38: 32 | B38: 000026 | C38: ECHAJAYA SIFUENTES MEKCIO JORGE | D38: 45581438 | E38: TECNICO EN FARMACIA | F38: R.O. | G38: 2018-12-31 | H38: 3200 | I38: 153
A39: 33 | B39: 000164 | C39: ESPINOZA MONTOYA YANETH | D39: 10738013 | E39: TECNICO EN FARMACIA | F39: R.O.O.C. | G39: 2021-08-17 | H39: 793.38 | I39: 83.7
A40: 34 | B40: 000200 | C40: ESTRADA FLORINDEZ LUZ MARINA | D40: 44535987 | E40: TECNICO EN ENFERMERIA | F40: R.O.O.C. | G40: 2020-04-01 | H40: 1700 | I40: 153
A41: 35 | B41: 000041 | C41: FIGUEROA DE LA CRUZ ROXANA PILAR | D41: 09615413 | E41: PSICOLOGO(A) | F41: R.O. | G41: 2015-03-26 | H41: 5100 | I41: 217.8
A42: 36 | B42: 000059 | C42: FIGUEROA REYNOSO EDITH GUISELLA | D42: 44720962 | E42: MEDICO PSIQUIATRA | F42: R.O. | G42: 2018-12-31 | H42: 9500 | I42: 217.8
A43: 37 | B43: 000034 | C43: GALLARDO FLORES OFELIA PAULA | D43: 07299584 | E43: ASISTENTE SOCIAL | F43: R.O. | G43: 2007-10-16 | H43: 5100 | I43: 217.8
A44: 38 | B44: 000068 | C44: GALLO QUISPE MARITZA RUTH | D44: 09893710 | E44: AUXILIAR ADMINISTRATIVO | F44: R.O. | G44: 2015-01-05 | H44: 3000 | I44: 135
A45: 39 | B45: 000061 | C45: GARIBAY LEON GARY GEEB | D45: 44369365 | E45: DESARROLLADOR DE APLICACIONES | F45: R.O. | G45: 2015-04-01 | H45: 2500 | I45: 217.8
A46: 40 | B46: 000193 | C46: GARROTE TAHUA LILIAN MERCEDES | D46: 25846409 | E46: TECNOLOGO MEDICO | F46: R.O. | G46: 2018-12-31 | H46: 5100 | I46: 217.8
A47: 41 | B47: 000169 | C47: GIRAO GUTIERREZ CRISTHIAN ALBERTO | D47: 42096876 | E47: TECNICO EN ENFERMERIA | F47: R.O. | G47: 2015-03-26 | H47: 3200 | I47: 153
A48: 42 | B48: 000008 | C48: GOMEZ AQUINO LIZBETH ANA | D48: 40002711 | E48: TECNICO EN ENFERMERIA | F48: R.O. | G48: 2017-12-29 | H48: 3200 | I48: 153
A49: 43 | B49: 000182 | C49: GOMEZ PARODI MANUEL ELIAS | D49: 45047061 | E49: ENFERMERA(O) | F49: R.O.O.C. | G49: 2020-04-01 | H49: 2700 | I49: 217.8
A50: 44 | B50: 000064 | C50: GONZALES FERNANDEZ ROCIO | D50: 45974500 | E50: DIGITADOR(A) | F50: R.O. | G50: 2018-08-24 | H50: 3000 | I50: 135
A51: 45 | B51: 000022 | C51: GONZALES LOZANO GUILLERMO | D51: 70425237 | E51: DIGITADOR(A) | F51: R.O. | G51: 2012-05-14 | H51: 3000 | I51: 135
A52: 46 | B52: 000082 | C52: GOZME DE LA CRUZ RUTH JUDITH | D52: 70110694 | E52: ASISTENTE SOCIAL | F52: R.O.O.C. | G52: 2020-04-01 | H52: 2700 | I52: 217.8
A53: 47 | B53: 000201 | C53: GUTIERREZ CARDENAS RENZO | D53: 44385818 | E53: NUTRICIONISTA | F53: R.O.O.C. | G53: 2020-04-01 | H53: 2700 | I53: 217.8
A54: 48 | B54: 000089 | C54: GUTIERREZ VILLA LUZ MIRELLA | D54: 42840331 | E54: ESPECIALISTA EN ESTADISTICA DE | F54: R.O. | G54: 2018-12-31 | H54: 5500 | I54: 217.8
A55: 49 | B55: 000195 | C55: HERRERA CANCHARI CYNTHIA | D55: 70045340 | E55: TECNICO EN FARMACIA | F55: R.O. | G55: 2018-12-31 | H55: 3200 | I55: 153
A56: 50 | B56: 000145 | C56: HERRERA HUAMAN ROGER | D56: 10432200 | E56: VIGILANTE | F56: R.O. | G56: 2017-12-19 | H56: 3000 | I56: 135
A57: 51 | B57: 000086 | C57: HUAMAN FABIAN PATRICIA DEL ROSARIO | D57: 42380421 | E57: TECNICO EN ENFERMERIA | F57: R.O.O.C. | G57: 2020-04-01 | H57: 1700 | I57: 153
A58: 52 | B58: 000094 | C58: HUAMAN MUNARRIZ SILVIA | D58: 42075287 | E58: PROFESIONAL EN EDUCACION | F58: R.O. | G58: 2018-12-31 | H58: 5100 | I58: 217.8
A59: 53 | B59: 000233 | C59: HUANCO CONDORI JESSICA CAROLINA | D59: 72898834 | E59: MEDICO PSIQUIATRA | F59: R.O.O.C. | G59: 2021-07-22 | H59: 8596.77 | I59: 217.8
A60: 54 | B60: 000090 | C60: ISIQUE GARCIA KINKEL JHONNATAN | D60: 48037756 | E60: TECNICO EN ENFERMERIA | F60: R.O.O.C. | G60: 2020-04-01 | H60: 1700 | I60: 153
A61: 55 | B61: 000152 | C61: JIMENEZ QUINCHO JULIO CESAR | D61: 70023847 | E61: TECNICO EN ENFERMERIA | F61: R.O. | G61: 2015-03-13 | H61: 3200 | I61: 153
A62: 56 | B62: 000077 | C62: JIMENEZ RABANELLI JOSE ANTONIO | D62: 40938345 | E62: MEDICO PSIQUIATRA | F62: R.O. | G62: 2018-12-31 | H62: 9500 | I62: 217.8
A63: 57 | B63: 000017 | C63: JUAREZ CHAVEZ ELVA ROSOMERI | D63: 10745332 | E63: DIGITADOR(A) | F63: R.O. | G63: 2015-01-23 | H63: 3000 | I63: 135
A64: 58 | B64: 000227 | C64: LEON CHAVEZ MERCEDES | D64: 07153666 | E64: TECNICO EN NUTRICION | F64: R.O.O.C. | G64: 2020-04-13 | H64: 1700 | I64: 153
A65: 59 | B65: 000166 | C65: LEON VELA MARIO ALEXANDER | D65: 44398667 | E65: DIGITADOR(A) | F65: R.O. | G65: 2015-04-01 | H65: 3000 | I65: 135
A66: 60 | B66: 000006 | C66: LIZANO ABAD CLAUDIA PIERINA | D66: 47787390 | E66: DIGITADOR(A) | F66: R.O. | G66: 2020-01-01 | H66: 3000 | I66: 135
A67: 61 | B67: 000080 | C67: LLACTARIMAY SANCHEZ EDITH | D67: 70439956 | E67: ENFERMERA(O) | F67: R.O. | G67: 2017-09-01 | H67: 5100 | I67: 217.8
A68: 62 | B68: 000228 | C68: LOMBARDI GIRON MADELEY YANINA | D68: 16175892 | E68: TECNICO EN NUTRICION | F68: R.O.O.C. | G68: 2020-04-07 | H68: 1700 | I68: 153
A69: 63 | B69: 000101 | C69: LOPEZ TOVAR ELIZABETH | D69: 70432505 | E69: NUTRICIONISTA | F69: R.O. | G69: 2017-12-19 | H69: 5100 | I69: 217.8
A70: 64 | B70: 000046 | C70: LOZADA MORALES MARIELA PATRICIA | D70: 10459510 | E70: DISEÑADOR GRAFICO | F70: R.O. | G70: 2004-12-16 | H70: 3200 | I70: 153
A71: 65 | B71: 000215 | C71: LUNA TUANAMA ANA LUISA | D71: 44791562 | E71: TECNICO EN FARMACIA | F71: R.O.O.C. | G71: 2020-04-01 | H71: 1700 | I71: 153
A72: 66 | B72: 000206 | C72: MACEDO ORREGO LUIS ENRIQUE | D72: 44661310 | E72: MEDICO PSIQUIATRA | F72: R.O. | G72: 2021-01-01 | H72: 6500 | I72: 217.8
A73: =A72+1 -> 67 | B73: 000050 | C73: MACHADO PAREDES JHONATAN CRISTIAN | D73: 44947036 | E73: TECNICO EN ENFERMERIA | F73: R.O. | G73: 2017-12-29 | H73: 3200 | I73: 153
A74: 68 | B74: 000168 | C74: MARTINEZ MONTENEGRO MANUEL YOVER | D74: 80629039 | E74: TECNICO EN NUTRICION | F74: R.O. | G74: 2019-10-01 | H74: 3000 | I74: 135
A75: 69 | B75: 000084 | C75: MAVILA CASTILLO GUILLERMO OCTAVIO | D75: 08031576 | E75: AUDITOR(A) | F75: R.O. | G75: 2013-03-14 | H75: 4000 | I75: 217.8
A76: 70 | B76: 000198 | C76: MEDINA PENADO HERBERT ALEJANDRO | D76: 08166396 | E76: TECNICO EN ENFERMERIA | F76: R.O. | G76: 2018-12-31 | H76: 3200 | I76: 153
A77: 71 | B77: 000165 | C77: MENDOZA CASTRO SANDRA | D77: 42334633 | E77: PSICOLOGO(A) | F77: R.O. | G77: 2015-03-26 | H77: 5100 | I77: 217.8
A78: 72 | B78: 000070 | C78: MITMA GARCIA LILIAN KATHERINE | D78: 45586557 | E78: TECNICO EN ENFERMERIA | F78: R.O. | G78: 2015-01-23 | H78: 3200 | I78: 153
A79: 73 | B79: 000216 | C79: MONTES CHIPANA JOSE MIGUEL | D79: 46188889 | E79: TECNICO EN ENFERMERIA | F79: R.O.O.C. | G79: 2020-04-01 | H79: 1700 | I79: 153
A80: 74 | B80: 000160 | C80: NAPANGA RIVAS JOANA NATALY | D80: 46594797 | E80: PSICOLOGO(A) | F80: R.O. | G80: 2019-10-01 | H80: 5100 | I80: 217.8
A81: 75 | B81: 000226 | C81: OLANO PALACIN VIOLETA SARITA | D81: 45679988 | E81: ENFERMERA(O) | F81: R.O.O.C. | G81: 2020-04-06 | H81: 2700 | I81: 217.8
A82: 76 | B82: 000224 | C82: ORTEGA OLIVAS STHEPHANY MIRZA | D82: 47784285 | E82: ENFERMERA(O) | F82: R.O. | G82: 2021-05-13 | H82: 2600 | I82: 217.8
A83: 77 | B83: 000051 | C83: ORTIZ SANCHEZ FLOR DE MARIA | D83: 10138472 | E83: DIGITADOR(A) | F83: R.O. | G83: 2004-08-25 | H83: 3000 | I83: 135
A84: 78 | B84: 000042 | C84: PACCURI ALMANZA DIANA JIULLIANA | D84: 43622031 | E84: QUIMICO FARMACEUTICO | F84: R.O. | G84: 2020-04-01 | H84: 2700 | I84: 217.8
A85: 79 | B85: 000097 | C85: PALOMINO ORE CANDY | D85: 44041900 | E85: MEDICO PSIQUIATRA | F85: R.O. | G85: 2019-10-01 | H85: 9500 | I85: 217.8
A86: 80 | B86: 000217 | C86: PAREDES ECHEVERRIA LUIS ALFREDO | D86: 41264696 | E86: TECNICO EN ENFERMERIA | F86: R.O.O.C. | G86: 2020-04-01 | H86: 1700 | I86: 153
A87: 81 | B87: 000107 | C87: PAREDES URQUIZO JORDAN LOANI | D87: 46626286 | E87: PSICOLOGO(A) | F87: R.O. | G87: 2018-12-31 | H87: 5100 | I87: 217.8
A88: 82 | B88: 000053 | C88: PEREZ DAVILA SHELLA HEIDI | D88: 10624576 | E88: DIGITADOR(A) | F88: R.O. | G88: 2004-08-23 | H88: 3000 | I88: 135
A89: 83 | B89: 000218 | C89: PESANTES TOMAPASCA ELIO | D89: 44110109 | E89: TECNICO EN ENFERMERIA | F89: R.O.O.C. | G89: 2020-04-01 | H89: 1700 | I89: 153
A90: 84 | B90: 000181 | C90: PINEDA GOMEZ LUIS ANGEL | D90: 47905305 | E90: ESPECIALISTA EN INFORMATICA | F90: R.O. | G90: 2018-12-31 | H90: 4900 | I90: 217.8
A91: 85 | B91: 000055 | C91: POZO LEVANO JESSICA LOURDES | D91: 10586463 | E91: PSICOLOGO(A) | F91: R.O. | G91: 2004-08-23 | H91: 5100 | I91: 217.8
A92: 86 | B92: 000057 | C92: PUCLLA SIHUA ANA MARIA | D92: 43578005 | E92: TECNICO EN ENFERMERIA | F92: R.O. | G92: 2017-12-29 | H92: 3200 | I92: 153
A93: 87 | B93: 000062 | C93: RAMIREZ FIGUEROA ROSA MILAGROS | D93: 15996748 | E93: DIGITADOR(A) | F93: R.O. | G93: 2012-02-06 | H93: 3200 | I93: 153
A94: 88 | B94: 000220 | C94: RAMOS GUEVARA MARIO | D94: 10146232 | E94: TECNICO EN ENFERMERIA | F94: R.O.O.C. | G94: 2020-04-01 | H94: 1700 | I94: 153
A95: 89 | B95: 000183 | C95: RIVERA ENCINAS MARIA TERESA | D95: 44360320 | E95: MEDICO PSIQUIATRA | F95: R.O. | G95: 2018-12-31 | H95: 9500 | I95: 217.8
A96: 90 | B96: 000069 | C96: RODRIGUEZ ORE JULIO ALBERTO | D96: 40523216 | E96: TECNOLOGO MEDICO | F96: R.O. | G96: 2015-07-01 | H96: 5100 | I96: 217.8
A97: 91 | B97: 000133 | C97: ROJAS MEDINA JESUS | D97: 07173031 | E97: TECNICO EN IMPRESIONES | F97: R.O. | G97: 2013-09-05 | H97: 3000 | I97: 135
A98: 92 | B98: 000111 | C98: ROJAS ROJAS IRA GALIA | D98: 40656893 | E98: MEDICO PSIQUIATRA | F98: R.O. | G98: 2015-08-03 | H98: 9500 | I98: 217.8
A99: 93 | B99: 000221 | C99: SALAZAR GOMEZ JANET NANCY | D99: 41042705 | E99: TECNICO EN ENFERMERIA | F99: R.O.O.C. | G99: 2020-04-01 | H99: 1700 | I99: 153
A100: 94 | B100: 000187 | C100: SALAZAR GOMEZ ROSALIA | D100: 71032664 | E100: TECNICO EN ENFERMERIA | F100: R.O. | G100: 2018-12-31 | H100: 3200 | I100: 153
A101: 95 | B101: 000103 | C101: SALAZAR OLIVARES HERON ARSENIO | D101: 06205988 | E101: ESPECIALISTA ADMINISTRATIVO | F101: R.O. | G101: 2010-06-17 | H101: 5000 | I101: 217.8
A102: 96 | B102: 000088 | C102: SALAZAR ROMERO ALEXANDRA MELISSA | D102: 44767315 | E102: TECNICO EN ENFERMERIA | F102: R.O. | G102: 2015-01-23 | H102: 3200 | I102: 153
A103: 97 | B103: 000186 | C103: SALAZAR YAMAMOTO JORGE | D103: 25814164 | E103: TECNICO EN FARMACIA | F103: R.O. | G103: 2018-12-31 | H103: 3200 | I103: 153
A104: 98 | B104: 000081 | C104: SANCHEZ REYES KARINA ELIZABETH | D104: 42503574 | E104: QUIMICO FARMACEUTICO | F104: R.O. | G104: 2017-12-29 | H104: 5100 | I104: 217.8
A105: 99 | B105: 000180 | C105: SANTILLAN TUANAMA MARLON FERNANDO | D105: 70096252 | E105: TECNICO EN ENFERMERIA | F105: R.O. | G105: 2021-01-01 | H105: 1500 | I105: 135
A106: 100 | B106: 000159 | C106: SANTOS RAMOS MERYHAN | D106: 43225147 | E106: TECNICO EN ENFERMERIA | F106: R.O. | G106: 2015-03-26 | H106: 3200 | I106: 153
A107: 101 | B107: 000176 | C107: TADDEY MANDAMIENTO JENNY KARINA | D107: 43812656 | E107: MEDICO PSIQUIATRA | F107: R.O. | G107: 2017-12-21 | H107: 9500 | I107: 217.8
A108: 102 | B108: 000025 | C108: TORREJON ESPEJO AILEEN ANGELICA SOFIA | D108: 42466373 | E108: MEDICO PSIQUIATRA | F108: R.O. | G108: 2015-08-03 | H108: 9500 | I108: 217.8
A109: 103 | B109: 000189 | C109: TORRES RENGIFO YAKIMA | D109: 45016827 | E109: BIOLOGO(A) | F109: R.O. | G109: 2018-12-31 | H109: 5100 | I109: 217.8
A110: 104 | B110: 000108 | C110: VALLES RIOS DE TUANAMA NELLY | D110: 00838682 | E110: ASISTENTE DE COMUNICACIONES | F110: R.O. | G110: 2017-12-19 | H110: 2541.94 | I110: 93.5
A111: 105 | B111: 000074 | C111: VALVERDE CHAUCA WILFREDO ROLANDO | D111: 09612467 | E111: TECNICO EN NUTRICION | F111: R.O. | G111: 2017-12-29 | H111: 3000 | I111: 135
A112: 106 | B112: 000172 | C112: VARGAS ROMANI JOHN NESTOR | D112: 42415811 | E112: TECNOLOGO MEDICO | F112: R.O. | G112: 2015-04-14 | H112: 5100 | I112: 217.8
A113: 107 | B113: 000202 | C113: VARGAS ZEGOVIA WINET ELDER | D113: 42391000 | E113: MEDICO PSIQUIATRA | F113: R.O. | G113: 2019-01-01 | H113: 9500 | I113: 217.8
A114: 108 | B114: 000071 | C114: VARILLAS FERNANDEZ DIEGO SANTIAGO | D114: 77138855 | E114: DIGITADOR(A) | F114: R.O. | G114: 2015-01-23 | H114: 3000 | I114: 135
A115: 109 | B115: 000223 | C115: VASQUEZ CONDOR HIMLER JUNIOR | D115: 45235378 | E115: TECNICO EN ENFERMERIA | F115: R.O.O.C. | G115: 2020-04-01 | H115: 1700 | I115: 153
A116: 110 | B116: 000225 | C116: VASQUEZ JARA NIDIA IRENE | D116: 42301305 | E116: MEDICO | F116: R.O.O.C. | G116: 2020-04-01 | H116: 6500 | I116: 217.8
A117: 111 | B117: 000020 | C117: VERA NAVARRETE MAGDA JULIA | D117: 41873370 | E117: PSICOLOGO(A) | F117: R.O. | G117: 2018-08-16 | H117: 5100 | I117: 217.8
A118: 112 | B118: 000105 | C118: VIA VALENZUELA HERMANN JAMILO | D118: 44742658 | E118: TECNICO EN ENFERMERIA | F118: R.O. | G118: 2015-01-23 | H118: 3200 | I118: 153
A119: 113 | B119: 000199 | C119: VILLANUEVA ALCANTARA JUAN CARLOS | D119: 44879814 | E119: ENFERMERA(O) | F119: R.O. | G119: 2019-01-01 | H119: 5100 | I119: 217.8
A120: =A117+1 -> 112 | B120: 000191 | C120: VIVAR MESIAS MILVIA MILAGROS | D120: 08559666 | E120: ASISTENTE SOCIAL | F120: R.O. | G120: 2018-12-31 | H120: 5100 | I120: 217.8
A121: TOTAL | H121: =SUM(H7:H120) -> 485712.09 | I121: =SUM(I7:I120) -> 20483
B122: JVM/BVR/rcc.
H123: 30 de setiembre 2021

Sheet Pensiones
B1: DECLARACION JURADA DE EJECUCION DE PAGO PLANILLA DE PENSIONISTAS AGOSTO 2021
A2: PLIEGO : 11- MINSA
A3: UNIDAD EJECUTORA : 005-INSTITUTO NACIONAL DE SALUD MENTAL"HONORIO DELGADO-HIDEYO NOGUCHI"
A5: Nº | B5: Nº PLAZA | C5: APELLIDOS Y NOMBRES | D5: DNI | E5: CARGO | F5: NIVEL | G5: CONDICION | H5: PENSIONES
A6: 1 | B6: 010445 | C6: AGUILAR ZEGARRA CARLOS GUILLERMO | D6: 07721104 | E6: MEDICO PSIQUIATRA | F6: 17 | G6: C | H6: 1953.29
A7: =A6+1 -> 2 | B7: 010849 | C7: ALLENDE PALOMINO TEOFILA | D7: 09012487 | E7: OPERAD. EQUIPO MEDICO I | F7: TA | G7: V | H7: 969
A8: =A7+1 -> 3 | B8: 010582 | C8: APOLAYA INGUNZA VDA. DE CANO INES ISABEL | D8: 07243214 | E8: OFICINISTA I | F8: NRR2 | G8: V | H8: 184.74
A9: 4 | B9: 010449 | C9: ARGANDOÑA FLORES MARIA JESUS | D9: 08421818 | E9: ASIST. SOCIAL | F9: 25 | G9: C | H9: 1087.96
A10: 5 | B10: 010451 | C10: ASENCIOS PANTOJA JONAS | D10: 08448033 | E10: ELECTRICISTA III | F10: TA | G10: C | H10: 1280.58
A11: 6 | B11: 010452 | C11: AVALOS YACTAYO JAIME LEON | D11: 08180243 | E11: ESP. ADMINIST. I | F11: PD | G11: C | H11: 919.65
A12: 7 | B12: 010453 | C12: AVELINO TOMAS MARIA BILMA | D12: 06127450 | E12: TECNOLOGO MEDICO | F12: 72 | G12: C | H12: 1063.2
A13: 8 | B13: 010455 | C13: BALDEON CHACON DE UGARTE AMANDA | D13: 10162240 | E13: TEC. EN ENFERMERIA II | F13: TA | G13: C | H13: 1245.58
A14: 9 | B14: 010549 | C14: BECERRA MEDINA DE PUPPI LUCY TANI | D14: 07733851 | E14: ENFERMERA/O | F14: 12 | G14: C | H14: 1027.37
A15: 10 | B15: 010458 | C15: CABEZA NORIEGA JUANA JUDITH | D15: 10060118 | E15: MEDICO NEUROLOGO | F15: 19 | G15: C | H15: 2977.34
A16: 11 | B16: 010459 | C16: CABRERA ORELLANA RODRIGO A | D16: 07412661 | E16: OPERAD. EQ.DE IMPRENTA I | F16: TB | G16: C | H16: 1188.75
A17: 12 | B17: 010494 | C17: CORDOVA VELASQUEZ VDA DE MORY ELENA | D17: 08029280 | E17: SUP.DE CONSERV.Y SERV.I | F17: TB | G17: V | H17: 935.96
A18: 13 | B18: 010468 | C18: CUEVA MOTTA LOURDES RUTH | D18: 06231827 | E18: NUTRICIONISTA | F18: 27 | G18: C | H18: 1087.4
A19: 14 | B19: 010525 | C19: DAVILA VILLEGAS VDA DE ROSALES SENOBIA REBECA | D19: 08465139 | E19: TECNICO/A EN LOGISTICA | F19: TA | G19: V | H19: 766.52
A20: 15 | B20: 010469 | C20: DEL AGUILA CAVADAS VDA DE ABANTO MIRLA EMELDA | D20: 08555033 | E20: JEFE/A DE DIVISION | F20: F1 | G20: C | H20: 1533.91
A21: 16 | B21: 010470 | C21: DEL CASTILLO SIFUENTES VDA DE LINARES NELLY | D21: 08120875 | E21: TEC. EN ENFERMERIA II | F21: TA | G21: C | H21: 1224.9
A22: 17 | B22: 010471 | C22: DIAZ ROJAS ITALA | D22: 07156939 | E22: TEC. EN ENFERMERIA II | F22: TA | G22: C | H22: 1245.72
A23: 18 | B23: 010472 | C23: DIAZ TAFUR NIMIA | D23: 08555464 | E23: ENFERMERA/O | F23: 12 | G23: C | H23: 1114.92
A24: 19 | B24: 010473 | C24: ENCISO HINOSTROZA ESPERANZA CARMEN | D24: 08648544 | E24: JEFE/A DE DIVISION | F24: F1 | G24: C | H24: 1322.68
A25: 20 | B25: 010474 | C25: ESPINOZA CACERES JUANA EUFEMIA | D25: 08002742 | E25: TEC. EN ENFERMERIA II | F25: TA | G25: C | H25: 1239.49
A26: 21 | B26: 010464 | C26: FERNANDEZ TORREJON VDA DE TORRES NELLY AURORA | D26: 09921140 | E26: MEDICO | F26: 19 | G26: V | H26: 1621.72
A27: 22 | B27: 010581 | C27: GAMARRA TUPAYACHI JUAN FRANCISCO | D27: 07220056 | E27: JEFE/A DE DIVISION | F27: F1 | G27: C | H27: 1601.95
A28: 23 | B28: 010478 | C28: GUARDIA BAEZ JUAN EUSEBIO | D28: 07179752 | E28: TECNICO/A EN LOGISTICA | F28: TA | G28: C | H28: 1170.31
A29: 24 | B29: 010479 | C29: GUERRERO TERRY VDA DE CARO NELLIDA CONSUELO | D29: 08659511 | E29: TRABAJADOR DE SERVIC. II | F29: NRR2 | G29: C | H29: 810.09
A30: 25 | B30: 010553 | C30: JAPA SANDOVAL VDA. DE AIQUIPA FLORENCIA | D30: 06848814 | E30: ARTESANO III | F30: TA | G30: V | H30: 865.09
A31: 26 | B31: 010484 | C31: LOPEZ PINEDO GEMMA | D31: 07233175 | E31: TECNICO/A ADMINIST. II | F31: TA | G31: C | H31: 928.17
A32: 27 | B32: 010486 | C32: MAGALLANES CORTEZ NORMA ESTELA | D32: 25505622 | E32: CAJERO/A II | F32: TB | G32: C | H32: 1035.03
A33: 28 | B33: 010488 | C33: MALCA SANDOVAL ROSA AMELIA | D33: 10379117 | E33: SECRETARIA IV | F33: TA | G33: C | H33: 918.69
A34: 29 | B34: 010489 | C34: MENDOZA DONAYRE DE ROJAS CARMEN AMANDA | D34: 09019985 | E34: TECNICO/A ADMINIST. III | F34: TA | G34: C | H34: 1214.01
A35: 30 | B35: 010539 | C35: MESTANZA YNGA VDA DE HERRERA GLADYS ANGELA | D35: 08445538 | E35: AUX. DE FARMACIA I | F35: NRR2 | G35: V | H35: 415
A36: 31 | B36: 010531 | C36: MOLINA MARIMON LEONOR | D36: 07243305 | E36: TECNICO/A ADMINIST. I | F36: TA | G36: S | H36: 1176.61
A37: 32 | B37: 010492 | C37: MONGE QUIJADA AIDA LUZ | D37: 08735973 | E37: ASIST. SOCIAL | F37: 27 | G37: C | H37: 1333.49
A38: 33 | B38: 010493 | C38: MONTERO ORDINOLA JUAN CARLOS | D38: 07217436 | E38: PSICOLOGO | F38: 82 | G38: C | H38: 891.82
A39: 34 | B39: 010532 | C39: MORAN SEMINARIO LUCERO MILAGRITOS | D39: 09030287 | E39: TEC. SANITARIO I | F39: TA | G39: V | H39: 826.85
A40: 35 | B40: 010496 | C40: OLIVER PAREDES SANTOS FELIPE ERNESTO | D40: 07744628 | E40: MEDICO PSIQUIATRA | F40: 18 | G40: C | H40: 2128.37
A41: 36 | B41: 010878 | C41: ORRILLO RODRIGUEZ VDA DE CHAVEZ DORA GUILLERM | D41: 08210503 | E41: MEDICO PSIQUIATRA | F41: 19 | G41: V | H41: 1596.71
A42: 37 | B42: 010982 | C42: ORTIZ ESPINOZA VDA DE MILLA TRINIDAD | D42: 07111377 | E42: OPERAD. EQUIPO MEDICO I | F42: TA | G42: V | H42: 960
A43: 38 | B43: 010497 | C43: PAJUELO ANAYA TEOGENES OSAY | D43: 08696123 | E43: ENFERMERA/O | F43: 14 | G43: C | H43: 1358.02
A44: 39 | B44: 010498 | C44: PATRON LENGUA VIOLETA ANGELICA | D44: 07195951 | E44: TECNICO/A ADMINIST. I | F44: TA | G44: C | H44: 1225.86
A45: 40 | B45: 010534 | C45: PINO BOCANEGRA VDA DE HUAMANCAYO JESUS ISRAEL | D45: 06023517 | E45: ENFERMERA/O | F45: 14 | G45: V | H45: 757
A46: 41 | B46: 010506 | C46: RAMIREZ QUEZADA VDA. DE RODRIGUEZ CLARA | D46: 06940605 | E46: ARTESANO III | F46: TA | G46: V | H46: 897
A47: 42 | B47: 010504 | C47: REYES LOSTAUNAU MARIA ANTONIETA | D47: 25614859 | E47: NUTRICIONISTA | F47: 27 | G47: C | H47: 1300.55
A48: 43 | B48: 010536 | C48: ROSALES DAVILA VERONICA REBECA | D48: 09913949 | E48: TECNICO/A ADMINIST. III | F48: TA | G48: S | H48: 382.21
A49: 44 | B49: 010508 | C49: SAAVEDRA ORTIZ NELLY FLORENCIA | D49: 10315668 | E49: PSICOLOGO | F49: 84 | G49: C | H49: 1270.55
A50: 45 | B50: 010510 | C50: SALES RAMOS LUIS ALBERTO | D50: 10831806 | E50: JEFE/A DE DIVISION | F50: NRR2 | G50: C | H50: 475
A51: 46 | B51: 010511 | C51: SANCHEZ RENTERA DE ALVARADO OTILIA | D51: 08447447 | E51: TEC. EN ENFERMERIA II | F51: TA | G51: C | H51: 1289.49
A52: 47 | B52: 010512 | C52: SARMIENTO HURTADO ENRIQUE EDUARDO | D52: 25836822 | E52: TECNOLOGO MEDICO | F52: 71 | G52: C | H52: 969.64
A53: 48 | B53: 010513 | C53: SILVA FLORES ESTHER YOLANDA | D53: 06072255 | E53: EDUCADOR PARA LA SALUD I | F53: PB | G53: C | H53: 1253.57
A54: 49 | B54: 010514 | C54: SOGI UEMATSU CECILIA GRACIELA RURI | D54: 10143433 | E54: MEDICO PSIQUIATRA | F54: 17 | G54: C | H54: 2577.13
A55: 50 | B55: 010500 | C55: SOLANO DEL CASTILLO VDA DE CASTILLO FRANCISCA | D55: 08009425 | E55: TECNICO/A ADMINIST. I | F55: TA | G55: V | H55: 1012
A56: 51 | B56: 010552 | C56: SOLIS BROCK VDA.DE BROCK LILIA GRACIANA | D56: 25680648 | E56: TEC. EN TRANSPORTE I | F56: TA | G56: V | H56: 575.33
A57: 52 | B57: 010515 | C57: SOTELO RODRIGUEZ VDA DE CHICHIPE ORFELINDA | D57: 08609547 | E57: TEC. EN ENFERMERIA II | F57: TA | G57: C | H57: 1251.16
A58: 53 | B58: 010476 | C58: TATAJE ROBLES VDA DE GONZALES JUANA | D58: 08085869 | E58: TEC. EN ENFERMERIA II | F58: TA | G58: V | H58: 960.23
A59: 54 | B59: 010884 | C59: TORRES FUENTES MANUEL ANTONIO | D59: 06705298 | E59: TECNICO/A ADMINIST. I | F59: TA | G59: V | H59: 969
A60: 55 | B60: 010540 | C60: TORRES MENDOZA VDA DE CESTI CARMEN ROSA | D60: 08491605 | E60: ARTESANO IV | F60: TA | G60: V | H60: 1148.3
A61: 56 | B61: 010518 | C61: UCAÑAN VILLEGAS ZULEMA | D61: 08657319 | E61: TEC. ADMINISTRATIVO | F61: TA | G61: C | H61: 913.57
A62: 57 | B62: 010505 | C62: VEGA GAYTAN MAURO | D62: 08510936 | E62: ARTESANO I | F62: TB | G62: C | H62: 1277.89
A63: 58 | B63: 010521 | C63: VERGARA DHAGA DEL CASTILLO MARIELA ROSARIO | D63: 07561371 | E63: SUB DIRECTOR | F63: F2 | G63: C | H63: 1349.88
A64: 59 | B64: 010522 | C64: WARTHON GRAJEDA DANTE EFRAIN | D64: 25627924 | E64: MEDICO PSIQUIATRA | F64: 17 | G64: C | H64: 2640.73
A65: 60 | B65: 010524 | C65: ZELAYA AGUERO RUFINO | D65: 08585035 | E65: TECNICO/A ADMINIST. III | F65: TA | G65: C | H65: 1282.09
A66: 61 | B66: 010693 | C66: ZORRILLA GARAYAR ELIZABETH NERIDA | D66: 06036829 | E66: ENFERMERA/O | F66: 14 | G66: C | H66: 1184.94
A67: T O T A L P L A N I L L A | H67: =SUM(H6:H66) -> 72184.01
B68: JVM/BVR/rcc.
G69: 30 de setiembre 2021
